Department family,Entity,Date,Expense type,Expense area,Supplier,Transaction number,Amount,VAT registration number
Department for Business Energy and Industrial Strategy,Intellectual Property Office,05/08/2021,Pay Costs,Patent Directorate,Acorn Recruitment Ltd,983570,506.5,Not Applicable
Department for Business Energy and Industrial Strategy,Intellectual Property Office,04/08/2021,Pay Costs,Patent Directorate,Acorn Recruitment Ltd,983571,"1,611.94",Not Applicable
Department for Business Energy and Industrial Strategy,Intellectual Property Office,12/08/2021,Pay Costs,Patent Directorate,Acorn Recruitment Ltd,984164,534.19,Not Applicable
Department for Business Energy and Industrial Strategy,Intellectual Property Office,12/08/2021,Pay Costs,Patent Directorate,Acorn Recruitment Ltd,984165,692.76,Not Applicable
Department for Business Energy and Industrial Strategy,Intellectual Property Office,17/08/2021,Pay Costs,Patent Directorate,Acorn Recruitment Ltd,984707,741.12,Not Applicable
Department for Business Energy and Industrial Strategy,Intellectual Property Office,26/08/2021,Telecoms,IT Directorate,British  Telecom,VP02239170-AUG21,"1,525.22",Not Applicable
Department for Business Energy and Industrial Strategy,Intellectual Property Office,03/08/2021,Telecoms,IT Directorate,British  Telecom,WM41963919JUL21,"1,546.00",Not Applicable
Department for Business Energy and Industrial Strategy,Intellectual Property Office,18/08/2021,Telecoms,IT Directorate,British  Telecom,WM41998427-JUL21,"2,954.80",Not Applicable
Department for Business Energy and Industrial Strategy,Intellectual Property Office,19/08/2021,Telecoms,IT Directorate,British  Telecom,WM42102445-JUL21,"2,968.00",Not Applicable
Department for Business Energy and Industrial Strategy,Intellectual Property Office,04/08/2021,Office Supplies,Patent Directorate,British Library,700024179X,"1,760.81",Not Applicable
Department for Business Energy and Industrial Strategy,Intellectual Property Office,20/08/2021,Miscellaneous Expenses General,Patent Directorate,British Standards Institution BSI,95826753,"2,460.00",Not Applicable
Department for Business Energy and Industrial Strategy,Intellectual Property Office,18/08/2021,Other FA at Cost,People Places & Serv Directorate,Cabinet Office,3809124,"29,445.00",Not Applicable
Department for Business Energy and Industrial Strategy,Intellectual Property Office,17/08/2021,Miscellaneous Expenses General,People Places & Serv Directorate,Cabinet Office,3809211,"7,358.40",Not Applicable
Department for Business Energy and Industrial Strategy,Intellectual Property Office,17/08/2021,Miscellaneous Expenses General,People Places & Serv Directorate,Capital Law LLP,60010661,"2,557.20",Not Applicable
Department for Business Energy and Industrial Strategy,Intellectual Property Office,17/08/2021,Miscellaneous Expenses General,People Places & Serv Directorate,Capital Law LLP,60016718,780,Not Applicable
Department for Business Energy and Industrial Strategy,Intellectual Property Office,24/08/2021,Accommodation,People Places & Serv Directorate,Corona Energy,16183562,665.44,Not Applicable
Department for Business Energy and Industrial Strategy,Intellectual Property Office,24/08/2021,Accommodation,People Places & Serv Directorate,Corona Energy,16183563,669.92,Not Applicable
Department for Business Energy and Industrial Strategy,Intellectual Property Office,17/08/2021,Accommodation,People Places & Serv Directorate,Corona Energy,16255041,"1,626.17",Not Applicable
Department for Business Energy and Industrial Strategy,Intellectual Property Office,17/08/2021,Accommodation,People Places & Serv Directorate,Corona Energy,16255052,639.52,Not Applicable
Department for Business Energy and Industrial Strategy,Intellectual Property Office,26/08/2021,Supporting UK Business,Innovation Directorate,Dehns,995916,"2,500.00",Not Applicable
Department for Business Energy and Industrial Strategy,Intellectual Property Office,03/08/2021,Postage & Delivery Costs,People Places & Serv Directorate,DHL International (UK) Ltd,BRSR004923050,752.06,Not Applicable
Department for Business Energy and Industrial Strategy,Intellectual Property Office,11/08/2021,Postage & Delivery Costs,People Places & Serv Directorate,DHL International (UK) Ltd,BRSR004947761,"4,600.75",Not Applicable
Department for Business Energy and Industrial Strategy,Intellectual Property Office,17/08/2021,Postage & Delivery Costs,People Places & Serv Directorate,DHL International (UK) Ltd,BRSR004968992,"4,673.73",Not Applicable
Department for Business Energy and Industrial Strategy,Intellectual Property Office,25/08/2021,Postage & Delivery Costs,People Places & Serv Directorate,DHL International (UK) Ltd,BRSR004989958,"2,199.09",Not Applicable
Department for Business Energy and Industrial Strategy,Intellectual Property Office,17/08/2021,Accommodation,People Places & Serv Directorate,Pro Investments Limited,168319,"24,750.00",Not Applicable
Department for Business Energy and Industrial Strategy,Intellectual Property Office,17/08/2021,Accommodation,People Places & Serv Directorate,Pro Investments Limited,168320,"1,803.71",Not Applicable
Department for Business Energy and Industrial Strategy,Intellectual Property Office,03/08/2021,Pay Costs,Projects,Hays Specialist Recruitment,1011476294,860.28,Not Applicable
Department for Business Energy and Industrial Strategy,Intellectual Property Office,03/08/2021,Pay Costs,Projects,Hays Specialist Recruitment,1011499225,"1,001.52",Not Applicable
Department for Business Energy and Industrial Strategy,Intellectual Property Office,03/08/2021,Pay Costs,Projects,Hays Specialist Recruitment,1011512200,"1,001.52",Not Applicable
Department for Business Energy and Industrial Strategy,Intellectual Property Office,05/08/2021,Pay Costs,Finance Directorate,Hays Specialist Recruitment,1011522819,"3,386.94",Not Applicable
Department for Business Energy and Industrial Strategy,Intellectual Property Office,23/08/2021,Pay Costs,Finance Directorate,Hays Specialist Recruitment,1011522820,"3,763.26",Not Applicable
Department for Business Energy and Industrial Strategy,Intellectual Property Office,12/08/2021,Pay Costs,Projects,Hays Specialist Recruitment,1011529746,731.88,Not Applicable
Department for Business Energy and Industrial Strategy,Intellectual Property Office,23/08/2021,Pay Costs,Projects,Hays Specialist Recruitment,1011550346,"3,541.26",Not Applicable
Department for Business Energy and Industrial Strategy,Intellectual Property Office,23/08/2021,Pay Costs,Projects,Hays Specialist Recruitment,1011550480,"7,271.64",Not Applicable
Department for Business Energy and Industrial Strategy,Intellectual Property Office,23/08/2021,Pay Costs,Finance Directorate,Hays Specialist Recruitment,1011550556,"2,257.97",Not Applicable
Department for Business Energy and Industrial Strategy,Intellectual Property Office,23/08/2021,Pay Costs,Finance Directorate,Hays Specialist Recruitment,1011550557,"2,257.96",Not Applicable
Department for Business Energy and Industrial Strategy,Intellectual Property Office,23/08/2021,Pay Costs,Projects,Hays Specialist Recruitment,1011550779,"2,833.01",Not Applicable
Department for Business Energy and Industrial Strategy,Intellectual Property Office,25/08/2021,Staff Costs,IT Directorate,Hays Specialist Recruitment,1011565400,"9,426.02",Not Applicable
Department for Business Energy and Industrial Strategy,Intellectual Property Office,23/08/2021,Pay Costs,Copyright and Enforcement Directorate,Home  Office,2584367,"4,100.48",Not Applicable
Department for Business Energy and Industrial Strategy,Intellectual Property Office,23/08/2021,Pay Costs,Copyright and Enforcement Directorate,Home  Office,2584369,"4,828.80",Not Applicable
Department for Business Energy and Industrial Strategy,Intellectual Property Office,24/08/2021,Pay Costs,Copyright and Enforcement Directorate,Home  Office,2584371,"9,924.17",Not Applicable
Department for Business Energy and Industrial Strategy,Intellectual Property Office,19/08/2021,Office Supplies,IT Directorate,Insight Direct (UK) Ltd,5404333,"294,028.18",Not Applicable
Department for Business Energy and Industrial Strategy,Intellectual Property Office,23/08/2021,Legal & Hearings,Trade Mark Directorate,Marten Walsh Cherer Ltd,116569,"4,514.56",Not Applicable
Department for Business Energy and Industrial Strategy,Intellectual Property Office,23/08/2021,Legal & Hearings,Trade Mark Directorate,Marten Walsh Cherer Ltd,116940,"6,214.32",Not Applicable
Department for Business Energy and Industrial Strategy,Intellectual Property Office,02/08/2021,Legal & Hearings,Trade Mark Directorate,Marten Walsh Cherer Ltd,117434,"2,909.15",Not Applicable
Department for Business Energy and Industrial Strategy,Intellectual Property Office,10/08/2021,Legal & Hearings,Trade Mark Directorate,Marten Walsh Cherer Ltd,117686,"1,588.43",Not Applicable
Department for Business Energy and Industrial Strategy,Intellectual Property Office,20/08/2021,Legal & Hearings,Trade Mark Directorate,Marten Walsh Cherer Ltd,117951,"3,568.84",Not Applicable
Department for Business Energy and Industrial Strategy,Intellectual Property Office,20/08/2021,Legal & Hearings,Trade Mark Directorate,Marten Walsh Cherer Ltd,117952,"2,642.09",Not Applicable
Department for Business Energy and Industrial Strategy,Intellectual Property Office,04/08/2021,Postage & Delivery Costs,People Places & Serv Directorate,Quadient UK Limited,705614-03AUG21,"10,000.00",Not Applicable
Department for Business Energy and Industrial Strategy,Intellectual Property Office,02/08/2021,Accommodation,People Places & Serv Directorate,Office for National Statistics,2751054,"513,749.71",Not Applicable
Department for Business Energy and Industrial Strategy,Intellectual Property Office,02/08/2021,Accommodation,People Places & Serv Directorate,Office for National Statistics,2751054,"677,952.00",Not Applicable
Department for Business Energy and Industrial Strategy,Intellectual Property Office,02/08/2021,Accommodation,People Places & Serv Directorate,Office for National Statistics,2751054,"274,921.51",Not Applicable
Department for Business Energy and Industrial Strategy,Intellectual Property Office,18/08/2021,Pay Costs,People Places & Serv Directorate,C2W Support,34667,904.99,Not Applicable
Department for Business Energy and Industrial Strategy,Intellectual Property Office,12/08/2021,Pay Costs,People Places & Serv Directorate,C2W Support,34714,550,Not Applicable
Department for Business Energy and Industrial Strategy,Intellectual Property Office,02/08/2021,Pay Costs,People Places & Serv Directorate,Park Retail Ltd t/a Love2reward,56038906,"2,582.30",Not Applicable
Department for Business Energy and Industrial Strategy,Intellectual Property Office,03/08/2021,Pay Costs,People Places & Serv Directorate,Park Retail Ltd t/a Love2reward,56088755,"5,821.20",Not Applicable
Department for Business Energy and Industrial Strategy,Intellectual Property Office,10/08/2021,Pay Costs,People Places & Serv Directorate,Park Retail Ltd t/a Love2reward,56114619,"1,920.80",Not Applicable
Department for Business Energy and Industrial Strategy,Intellectual Property Office,23/08/2021,Pay Costs,People Places & Serv Directorate,Park Retail Ltd t/a Love2reward,56137477,"3,606.40",Not Applicable
Department for Business Energy and Industrial Strategy,Intellectual Property Office,24/08/2021,Pay Costs,People Places & Serv Directorate,Park Retail Ltd t/a Love2reward,56159572,"1,920.80",Not Applicable
Department for Business Energy and Industrial Strategy,Intellectual Property Office,10/08/2021,Information Technology,IT Directorate,Phoenix Software Ltd,OP/I902148,"8,341.20",Not Applicable
Department for Business Energy and Industrial Strategy,Intellectual Property Office,25/08/2021,Supporting UK Business,Innovation Directorate,Potter Clarkson LLP,982101,"2,500.00",Not Applicable
Department for Business Energy and Industrial Strategy,Intellectual Property Office,12/08/2021,Information Technology,IT Directorate,QA Ltd,QA-PRI-000000331,"3,131.46",Not Applicable
Department for Business Energy and Industrial Strategy,Intellectual Property Office,16/08/2021,Information Technology,IT Directorate,QA Ltd,QA-PRI-000000348,"32,567.26",Not Applicable
Department for Business Energy and Industrial Strategy,Intellectual Property Office,16/08/2021,Information Technology,IT Directorate,QA Ltd,QA-PRI-000000415,"33,054.31",Not Applicable
Department for Business Energy and Industrial Strategy,Intellectual Property Office,04/08/2021,Postage & Delivery Costs,People Places & Serv Directorate,Royal Mail,9063283287,"1,281.27",Not Applicable
Department for Business Energy and Industrial Strategy,Intellectual Property Office,04/08/2021,Postage & Delivery Costs,People Places & Serv Directorate,Royal Mail,9063363047,"2,022.51",Not Applicable
Department for Business Energy and Industrial Strategy,Intellectual Property Office,17/08/2021,Postage & Delivery Costs,People Places & Serv Directorate,Royal Mail,9063421215,"1,596.28",Not Applicable
Department for Business Energy and Industrial Strategy,Intellectual Property Office,17/08/2021,Accommodation,People Places & Serv Directorate,Senator International Ltd,S01682016,792.6,Not Applicable
Department for Business Energy and Industrial Strategy,Intellectual Property Office,17/08/2021,Accommodation,People Places & Serv Directorate,Senator International Ltd,S01682017,792.6,Not Applicable
Department for Business Energy and Industrial Strategy,Intellectual Property Office,17/08/2021,Accommodation,People Places & Serv Directorate,Senator International Ltd,S01682018,777.6,Not Applicable
Department for Business Energy and Industrial Strategy,Intellectual Property Office,25/08/2021,Information Technology,IT Directorate,Specialist Computer Centres Plc,OP/C175714,"-1,359.11",Not Applicable
Department for Business Energy and Industrial Strategy,Intellectual Property Office,25/08/2021,Information Technology,IT Directorate,Specialist Computer Centres Plc,OP/M995266,"1,599.11",Not Applicable
Department for Business Energy and Industrial Strategy,Intellectual Property Office,31/08/2021,Information Technology,IT Directorate,Specialist Computer Centres Plc,OP/N022479,606,Not Applicable
Department for Business Energy and Industrial Strategy,Intellectual Property Office,17/08/2021,Accommodation,People Places & Serv Directorate,Thomas Waste Management Ltd,284418,756,Not Applicable
Department for Business Energy and Industrial Strategy,Intellectual Property Office,10/08/2021,Accommodation,People Places & Serv Directorate,Thomas Waste Management Ltd,286100,756,Not Applicable
Department for Business Energy and Industrial Strategy,Intellectual Property Office,03/08/2021,Information Technology,IT Directorate,Trustmarque Solutions Ltd,2323791,"4,140.00",Not Applicable
Department for Business Energy and Industrial Strategy,Intellectual Property Office,03/08/2021,Information Technology,IT Directorate,Trustmarque Solutions Ltd,2323793,570,Not Applicable
Department for Business Energy and Industrial Strategy,Intellectual Property Office,06/08/2021,Travel & Subsistence,People Places & Serv Directorate,Veezu Ltd T/A Dragon Taxis (Newpor,54329,398.16,Not Applicable
Department for Business Energy and Industrial Strategy,Intellectual Property Office,06/08/2021,Travel & Subsistence,People Places & Serv Directorate,Veezu Ltd T/A Dragon Taxis (Newpor,54329,372.72,Not Applicable
Department for Business Energy and Industrial Strategy,Intellectual Property Office,12/08/2021,Supporting UK Business,Innovation Directorate,Withers &  Rogers LLP,6821418,"2,500.00",Not Applicable
Department for Business Energy and Industrial Strategy,Intellectual Property Office,26/08/2021,Supporting UK Business,Innovation Directorate,Withers &  Rogers LLP,6822736,"2,000.00",Not Applicable
Department for Business Energy and Industrial Strategy,Intellectual Property Office,24/08/2021,Supporting UK Business,Innovation Directorate,Withers &  Rogers LLP,6822743,"2,000.00",Not Applicable
Department for Business Energy and Industrial Strategy,Intellectual Property Office,10/08/2021,Staff Costs,People Places & Serv Directorate,Worth Consulting Ltd,1920,"1,428.00",Not Applicable
Department for Business Energy and Industrial Strategy,Intellectual Property Office,17/08/2021,Office Machinery,People Places & Serv Directorate,Xerox (UK) Ltd,1611011463,807.22,Not Applicable
Department for Business Energy and Industrial Strategy,Intellectual Property Office,10/08/2021,Office Supplies,People Places & Serv Directorate,Antalis UK Ltd,9915497,"2,370.67",Not Applicable
Department for Business Energy and Industrial Strategy,Intellectual Property Office,20/08/2021,Information Technology,IT Directorate,Computacenter (UK) ltd,3883145182,"4,578.00",Not Applicable
Department for Business Energy and Industrial Strategy,Intellectual Property Office,20/08/2021,Accommodation,People Places & Serv Directorate,Computacenter (UK) ltd,3883184539,717.95,Not Applicable
Department for Business Energy and Industrial Strategy,Intellectual Property Office,31/08/2021,Information Technology,IT Directorate,Computacenter (UK) ltd,3883189473,"43,642.92",Not Applicable
Department for Business Energy and Industrial Strategy,Intellectual Property Office,18/08/2021,Supporting UK Business,Innovation Directorate,Marks & Clerk LLP,5237881,"2,500.00",Not Applicable
Department for Business Energy and Industrial Strategy,Intellectual Property Office,27/08/2021,Supporting UK Business,Innovation Directorate,Marks & Clerk LLP,5239158,"2,500.00",Not Applicable
Department for Business Energy and Industrial Strategy,Intellectual Property Office,12/08/2021,Other FA at Cost,IT Directorate,Probrand Ltd,OP/1691876,"1,118.40",Not Applicable
Department for Business Energy and Industrial Strategy,Intellectual Property Office,25/08/2021,Supporting UK Business,Innovation Directorate,Venner Shipley  LLP,402839,"2,500.00",Not Applicable
Department for Business Energy and Industrial Strategy,Intellectual Property Office,02/08/2021,Supporting UK Business,International Policy Directorate,Foreign & Commonwealth and Development O,1137500,"43,655.97",Not Applicable
Department for Business Energy and Industrial Strategy,Intellectual Property Office,10/08/2021,Supporting UK Business,International Policy Directorate,Foreign & Commonwealth and Development O,1137731,"13,548.12",Not Applicable
Department for Business Energy and Industrial Strategy,Intellectual Property Office,10/08/2021,Supporting UK Business,International Policy Directorate,Foreign & Commonwealth and Development O,1137846,"-9,194.31",Not Applicable
Department for Business Energy and Industrial Strategy,Intellectual Property Office,26/08/2021,Supporting UK Business,International Policy Directorate,Foreign & Commonwealth and Development O,1137981,"1,226.42",Not Applicable
Department for Business Energy and Industrial Strategy,Intellectual Property Office,27/08/2021,Supporting UK Business,International Policy Directorate,Foreign & Commonwealth and Development O,1138185,"39,487.09",Not Applicable
Department for Business Energy and Industrial Strategy,Intellectual Property Office,11/08/2021,Information Technology,Finance Directorate,Advanced 365 Limited,ARBK/99057785,774,Not Applicable
Department for Business Energy and Industrial Strategy,Intellectual Property Office,13/08/2021,Miscellaneous Expenses General,People Places & Serv Directorate,Xexec Limited,46847,609.6,Not Applicable
Department for Business Energy and Industrial Strategy,Intellectual Property Office,18/08/2021,Supporting UK Business,Innovation Directorate,EVERFI Limited,61946,"2,340.00",Not Applicable
Department for Business Energy and Industrial Strategy,Intellectual Property Office,18/08/2021,Information Technology,IT Directorate,HORNBILL SERVICE MANAGEMENT LIMITE,HSMLI2100247,"6,120.00",Not Applicable
Department for Business Energy and Industrial Strategy,Intellectual Property Office,17/08/2021,Postage & Delivery Costs,People Places & Serv Directorate,RICO LOGISTICS LTD,SINRLLFS00320828,928.75,Not Applicable
Department for Business Energy and Industrial Strategy,Intellectual Property Office,02/08/2021,Postage & Delivery Costs,People Places & Serv Directorate,RICO LOGISTICS LTD,SINRLLFS00321826,858,Not Applicable
Department for Business Energy and Industrial Strategy,Intellectual Property Office,10/08/2021,Postage & Delivery Costs,People Places & Serv Directorate,RICO LOGISTICS LTD,SINRLLFS00322914,"1,482.02",Not Applicable
Department for Business Energy and Industrial Strategy,Intellectual Property Office,17/08/2021,Postage & Delivery Costs,People Places & Serv Directorate,RICO LOGISTICS LTD,SINRLLFS00324295,"2,414.64",Not Applicable
Department for Business Energy and Industrial Strategy,Intellectual Property Office,31/08/2021,Postage & Delivery Costs,People Places & Serv Directorate,RICO LOGISTICS LTD,SINRLLFS00326336,967.69,Not Applicable
Department for Business Energy and Industrial Strategy,Intellectual Property Office,17/08/2021,Telecoms,IT Directorate,VIRGIN MEDIA,917218-APR21,"1,001.75",Not Applicable
Department for Business Energy and Industrial Strategy,Intellectual Property Office,17/08/2021,Telecoms,IT Directorate,VIRGIN MEDIA,917218-AUG21,865.61,Not Applicable
Department for Business Energy and Industrial Strategy,Intellectual Property Office,17/08/2021,Telecoms,IT Directorate,VIRGIN MEDIA,917218-FEB21,812.65,Not Applicable
Department for Business Energy and Industrial Strategy,Intellectual Property Office,17/08/2021,Telecoms,IT Directorate,VIRGIN MEDIA,917218-JAN21,"1,812.90",Not Applicable
Department for Business Energy and Industrial Strategy,Intellectual Property Office,17/08/2021,Telecoms,IT Directorate,VIRGIN MEDIA,917218-JUL21,833.34,Not Applicable
Department for Business Energy and Industrial Strategy,Intellectual Property Office,17/08/2021,Telecoms,IT Directorate,VIRGIN MEDIA,917218-JUN21,778.82,Not Applicable
Department for Business Energy and Industrial Strategy,Intellectual Property Office,17/08/2021,Telecoms,IT Directorate,VIRGIN MEDIA,917218-MAR21,884.09,Not Applicable
Department for Business Energy and Industrial Strategy,Intellectual Property Office,17/08/2021,Telecoms,IT Directorate,VIRGIN MEDIA,917218-MAY21,871.45,Not Applicable
Department for Business Energy and Industrial Strategy,Intellectual Property Office,10/08/2021,Information Technology,IT Directorate,Open Connections Solutions Ltd,35075,"54,666.55",Not Applicable
Department for Business Energy and Industrial Strategy,Intellectual Property Office,11/08/2021,Supporting UK Business,Innovation Directorate,LAWRIE INTELLECTUAL PROPERTY,120904,"2,500.00",Not Applicable
Department for Business Energy and Industrial Strategy,Intellectual Property Office,27/08/2021,Supporting UK Business,Innovation Directorate,LAWRIE INTELLECTUAL PROPERTY,120925,"2,500.00",Not Applicable
Department for Business Energy and Industrial Strategy,Intellectual Property Office,04/08/2021,Supporting UK Business,Innovation Directorate,INNGOT LTD,S21-07/1,"2,500.00",Not Applicable
Department for Business Energy and Industrial Strategy,Intellectual Property Office,12/08/2021,Supporting UK Business,Innovation Directorate,INNGOT LTD,S21-07/5,"2,500.00",Not Applicable
Department for Business Energy and Industrial Strategy,Intellectual Property Office,12/08/2021,Supporting UK Business,Innovation Directorate,INNGOT LTD,S21-07/8,"2,500.00",Not Applicable
Department for Business Energy and Industrial Strategy,Intellectual Property Office,24/08/2021,Supporting UK Business,Innovation Directorate,INNGOT LTD,S21-08/10,"2,500.00",Not Applicable
Department for Business Energy and Industrial Strategy,Intellectual Property Office,13/08/2021,Supporting UK Business,Innovation Directorate,INNGOT LTD,S21-08/2,"2,500.00",Not Applicable
Department for Business Energy and Industrial Strategy,Intellectual Property Office,24/08/2021,Supporting UK Business,Innovation Directorate,INNGOT LTD,S21-08/8,"2,500.00",Not Applicable
Department for Business Energy and Industrial Strategy,Intellectual Property Office,04/08/2021,Supporting UK Business,Innovation Directorate,STEPHENS SCOWN LLP,156078,"2,500.00",Not Applicable
Department for Business Energy and Industrial Strategy,Intellectual Property Office,04/08/2021,Supporting UK Business,Innovation Directorate,STEPHENS SCOWN LLP,156162,"2,500.00",Not Applicable
Department for Business Energy and Industrial Strategy,Intellectual Property Office,11/08/2021,Supporting UK Business,Innovation Directorate,CAMERON INTELLECTUAL PROPERTY LTD,6346-21,"2,500.00",Not Applicable
Department for Business Energy and Industrial Strategy,Intellectual Property Office,05/08/2021,Pay Costs,Finance Directorate,Accountancy Recruitment Wales Ltd,999598,"1,243.20",Not Applicable
Department for Business Energy and Industrial Strategy,Intellectual Property Office,05/08/2021,Pay Costs,Finance Directorate,Accountancy Recruitment Wales Ltd,999599,960.82,Not Applicable
Department for Business Energy and Industrial Strategy,Intellectual Property Office,12/08/2021,Pay Costs,Finance Directorate,Accountancy Recruitment Wales Ltd,999605,"2,162.26",Not Applicable
Department for Business Energy and Industrial Strategy,Intellectual Property Office,12/08/2021,Pay Costs,Finance Directorate,Accountancy Recruitment Wales Ltd,999606,"1,056.18",Not Applicable
Department for Business Energy and Industrial Strategy,Intellectual Property Office,12/08/2021,Pay Costs,Finance Directorate,Accountancy Recruitment Wales Ltd,999607,815.83,Not Applicable
Department for Business Energy and Industrial Strategy,Intellectual Property Office,12/08/2021,Pay Costs,Finance Directorate,Accountancy Recruitment Wales Ltd,999608,"1,243.20",Not Applicable
Department for Business Energy and Industrial Strategy,Intellectual Property Office,18/08/2021,Pay Costs,Finance Directorate,Accountancy Recruitment Wales Ltd,999613,571.3,Not Applicable
Department for Business Energy and Industrial Strategy,Intellectual Property Office,18/08/2021,Pay Costs,Finance Directorate,Accountancy Recruitment Wales Ltd,999614,"2,311.66",Not Applicable
Department for Business Energy and Industrial Strategy,Intellectual Property Office,18/08/2021,Pay Costs,Finance Directorate,Accountancy Recruitment Wales Ltd,999615,"2,097.16",Not Applicable
Department for Business Energy and Industrial Strategy,Intellectual Property Office,18/08/2021,Pay Costs,Finance Directorate,Accountancy Recruitment Wales Ltd,999617,"1,243.20",Not Applicable
Department for Business Energy and Industrial Strategy,Intellectual Property Office,18/08/2021,Pay Costs,Finance Directorate,Accountancy Recruitment Wales Ltd,999618,"2,311.66",Not Applicable
Department for Business Energy and Industrial Strategy,Intellectual Property Office,25/08/2021,Pay Costs,Finance Directorate,Accountancy Recruitment Wales Ltd,999621,"2,180.86",Not Applicable
Department for Business Energy and Industrial Strategy,Intellectual Property Office,27/08/2021,Pay Costs,Finance Directorate,Accountancy Recruitment Wales Ltd,999623,"2,311.66",Not Applicable
Department for Business Energy and Industrial Strategy,Intellectual Property Office,25/08/2021,Pay Costs,Finance Directorate,Accountancy Recruitment Wales Ltd,999624,"1,243.20",Not Applicable
Department for Business Energy and Industrial Strategy,Intellectual Property Office,18/08/2021,Information Technology,IT Directorate,Experian Ltd,HEX67000723905,"136,940.90",Not Applicable
Department for Business Energy and Industrial Strategy,Intellectual Property Office,19/08/2021,Postage & Delivery Costs,People Places & Serv Directorate,CitySprint (UK) Ltd,3708683,"5,263.68",Not Applicable
Department for Business Energy and Industrial Strategy,Intellectual Property Office,12/08/2021,Accommodation,People Places & Serv Directorate,EDF ENERGY,/000010300147,992.83,Not Applicable
Department for Business Energy and Industrial Strategy,Intellectual Property Office,11/08/2021,Accommodation,People Places & Serv Directorate,EDF ENERGY,10302496,"22,987.61",Not Applicable
Department for Business Energy and Industrial Strategy,Intellectual Property Office,17/08/2021,Accommodation,People Places & Serv Directorate,EDF ENERGY,600007370,518.4,Not Applicable
Department for Business Energy and Industrial Strategy,Intellectual Property Office,03/08/2021,Supporting UK Business,Copyright and Enforcement Directorate,DAN ANTHONY PRESENTATIONS LTD,227,"5,000.00",Not Applicable
Department for Business Energy and Industrial Strategy,Intellectual Property Office,31/08/2021,Marketing & Publicity,Innovation Directorate,DAN ANTHONY PRESENTATIONS LTD,228,"2,100.00",Not Applicable
Department for Business Energy and Industrial Strategy,Intellectual Property Office,17/08/2021,Information Technology,IT Directorate,Bytes Software Services Ltd,790279,"207,411.43",Not Applicable
Department for Business Energy and Industrial Strategy,Intellectual Property Office,10/08/2021,Pay Costs,Copyright and Enforcement Directorate,Police & Crime Commissioner Sussex,1800048592,"3,010.22",Not Applicable
Department for Business Energy and Industrial Strategy,Intellectual Property Office,18/08/2021,Staff Costs,People Places & Serv Directorate,Sodexo Motivation Solutions UK Ltd,3755695,"3,765.03",Not Applicable
Department for Business Energy and Industrial Strategy,Intellectual Property Office,18/08/2021,Staff Costs,People Places & Serv Directorate,Sodexo Motivation Solutions UK Ltd,3755748,"3,334.54",Not Applicable
Department for Business Energy and Industrial Strategy,Intellectual Property Office,31/08/2021,Telecoms,IT Directorate,EE Ltd,1287240006,793.99,Not Applicable
Department for Business Energy and Industrial Strategy,Intellectual Property Office,12/08/2021,Legal & Hearings,Trade Mark Directorate,Government Legal Department,496808,"16,194.48",Not Applicable
Department for Business Energy and Industrial Strategy,Intellectual Property Office,12/08/2021,Telecoms,IT Directorate,Personal expenses,UK10/072021/5263,"2,238.11",Not Applicable
Department for Business Energy and Industrial Strategy,Intellectual Property Office,12/08/2021,Telecoms,IT Directorate,Personal expenses,UK10/082021/6916,"2,238.11",Not Applicable
Department for Business Energy and Industrial Strategy,Intellectual Property Office,04/08/2021,Supporting UK Business,Innovation Directorate,Murgitroyd & Company Ltd,27465A-21,"2,500.00",Not Applicable
Department for Business Energy and Industrial Strategy,Intellectual Property Office,11/08/2021,Supporting UK Business,Innovation Directorate,Murgitroyd & Company Ltd,41982S-21,"2,500.00",Not Applicable
Department for Business Energy and Industrial Strategy,Intellectual Property Office,26/08/2021,Information Technology,Innovation Directorate,Search Technology,13969,"6,882.77",Not Applicable
Department for Business Energy and Industrial Strategy,Intellectual Property Office,26/08/2021,Miscellaneous Expenses General,Patent Directorate,European Patent Office,40304426,"272,026.22",Not Applicable
Department for Business Energy and Industrial Strategy,Intellectual Property Office,26/08/2021,Information Technology,Patent Directorate,European Patent Office,40304558,"116,017.76",Not Applicable
Department for Business Energy and Industrial Strategy,Intellectual Property Office,18/08/2021,Miscellaneous Expenses General,Copyright and Enforcement Directorate,ITSA Ltd,76987,"2,203.20",Not Applicable
Department for Business Energy and Industrial Strategy,Intellectual Property Office,25/08/2021,Supporting UK Business,Innovation Directorate,Scintilla,INV-02846,"2,500.00",Not Applicable
Department for Business Energy and Industrial Strategy,Intellectual Property Office,26/08/2021,Information Technology,People Places & Serv Directorate,Pluralsight,INV10038963,"4,762.08",Not Applicable
Department for Business Energy and Industrial Strategy,Intellectual Property Office,27/08/2021,Supporting UK Business,Innovation Directorate,Forresters clear direction,KBO/5837446,"2,500.00",Not Applicable
Department for Business Energy and Industrial Strategy,Intellectual Property Office,06/08/2021,Information Technology,Patent Directorate,American Chemical Society,1153810,"15,360.98",Not Applicable
Department for Business Energy and Industrial Strategy,Intellectual Property Office,18/08/2021,Supporting UK Business,Innovation Directorate,Ipentus Limited,IP0011-AUG21,"2,500.00",Not Applicable
Department for Business Energy and Industrial Strategy,Intellectual Property Office,27/08/2021,Staff Costs,People Places & Serv Directorate,Korn Ferry UK limited,1195064974,"7,515.60",Not Applicable
Department for Business Energy and Industrial Strategy,Intellectual Property Office,27/08/2021,Staff Costs,People Places & Serv Directorate,Korn Ferry UK limited,1195064977,"21,044.40",Not Applicable
Department for Business Energy and Industrial Strategy,Intellectual Property Office,10/08/2021,Miscellaneous Expenses General,IT Directorate,Responsiv Solutions Limited,RSL1128,"1,302.00",Not Applicable
Department for Business Energy and Industrial Strategy,Intellectual Property Office,12/08/2021,Information Technology,IT Directorate,Responsiv Solutions Limited,RSL1129,"26,400.00",Not Applicable
Department for Business Energy and Industrial Strategy,Intellectual Property Office,03/08/2021,Staff Costs,IT Directorate,Responsiv Solutions Limited,RSL1135,"1,080.00",Not Applicable
Department for Business Energy and Industrial Strategy,Intellectual Property Office,17/08/2021,Information Technology,IT Directorate,Responsiv Solutions Limited,RSL1140,"5,208.00",Not Applicable
Department for Business Energy and Industrial Strategy,Intellectual Property Office,12/08/2021,Miscellaneous Expenses General,People Places & Serv Directorate,Church House Westminster Ltd,24235,"1,248.00",Not Applicable
Department for Business Energy and Industrial Strategy,Intellectual Property Office,23/08/2021,Information Technology,IT Directorate,Equal Experts UK Limited,INV-8799,"15,000.00",Not Applicable
Department for Business Energy and Industrial Strategy,Intellectual Property Office,23/08/2021,Information Technology,IT Directorate,Equal Experts UK Limited,INV-8906,"15,000.00",Not Applicable
Department for Business Energy and Industrial Strategy,Intellectual Property Office,23/08/2021,Information Technology,IT Directorate,Equal Experts UK Limited,INV-9017,"15,000.00",Not Applicable
Department for Business Energy and Industrial Strategy,Intellectual Property Office,10/08/2021,Information Technology,IT Directorate,Equal Experts UK Limited,INV-9153,"15,000.00",Not Applicable
Department for Business Energy and Industrial Strategy,Intellectual Property Office,10/08/2021,Marketing & Publicity,Innovation Directorate,Newton Media Ltd,12148,"2,592.00",Not Applicable
Department for Business Energy and Industrial Strategy,Intellectual Property Office,11/08/2021,Miscellaneous Expenses General,People Places & Serv Directorate,Autism Spectrum Connections Cymru,2754,"1,276.16",Not Applicable
Department for Business Energy and Industrial Strategy,Intellectual Property Office,18/08/2021,Miscellaneous Expenses General,People Places & Serv Directorate,BUSINESS DISABILITY FORUM,16826,"4,800.00",Not Applicable
Department for Business Energy and Industrial Strategy,Intellectual Property Office,25/08/2021,Supporting UK Business,Innovation Directorate,AA Thornton & Co,174909,"2,500.00",Not Applicable
Department for Business Energy and Industrial Strategy,Intellectual Property Office,12/08/2021,Supporting UK Business,Innovation Directorate,Keltie LLP,159570,"2,500.00",Not Applicable
Department for Business Energy and Industrial Strategy,Intellectual Property Office,10/08/2021,Information Technology,IT Directorate,8X8 Solutions,3132170,"2,630.44",Not Applicable
Department for Business Energy and Industrial Strategy,Intellectual Property Office,19/08/2021,Supporting UK Business,Innovation Directorate,HFG Limited,646108,"2,500.00",Not Applicable
Department for Business Energy and Industrial Strategy,Intellectual Property Office,20/08/2021,Supporting UK Business,Innovation Directorate,HFG Limited,649771,"2,500.01",Not Applicable
Department for Business Energy and Industrial Strategy,Intellectual Property Office,24/08/2021,Supporting UK Business,Innovation Directorate,HFG Limited,650290,"2,500.00",Not Applicable
Department for Business Energy and Industrial Strategy,Intellectual Property Office,13/08/2021,Accommodation,People Places & Serv Directorate,Todd Research Ltd,4932,"1,239.60",Not Applicable
Department for Business Energy and Industrial Strategy,Intellectual Property Office,13/08/2021,Supporting UK Business,Innovation Directorate,Sweetinburgh & Windsor Ltd,6426,"2,500.00",Not Applicable
Department for Business Energy and Industrial Strategy,Intellectual Property Office,25/08/2021,Supporting UK Business,Innovation Directorate,Sweetinburgh & Windsor Ltd,6431,"2,500.00",Not Applicable
Department for Business Energy and Industrial Strategy,Intellectual Property Office,26/08/2021,Supporting UK Business,Innovation Directorate,Sweetinburgh & Windsor Ltd,6444,"2,500.00",Not Applicable
Department for Business Energy and Industrial Strategy,Intellectual Property Office,24/08/2021,Telecoms,IT Directorate,Gamma Telecom Ltd,GA1613381,"2,062.90",Not Applicable
Department for Business Energy and Industrial Strategy,Intellectual Property Office,11/08/2021,Staff Costs,People Places & Serv Directorate,Bethan Roberts,731-2021,"1,050.00",Not Applicable
Department for Business Energy and Industrial Strategy,Intellectual Property Office,18/08/2021,Information Technology,IT Directorate,Kyocera Document Solutions UK Limited,1245879,"9,244.14",Not Applicable
Department for Business Energy and Industrial Strategy,Intellectual Property Office,12/08/2021,Information Technology,IT Directorate,Microsoft Limited,9899212244,"76,620.00",Not Applicable
Department for Business Energy and Industrial Strategy,Intellectual Property Office,19/08/2021,Marketing & Publicity,Innovation Directorate,Bell Integrated Communications Limited,SINV-3376,600,Not Applicable
Department for Business Energy and Industrial Strategy,Intellectual Property Office,13/08/2021,Information Technology,Finance Directorate,Atamis Limited,A2020-940,"2,400.00",Not Applicable
Department for Business Energy and Industrial Strategy,Intellectual Property Office,02/08/2021,Pay Costs,Patent Directorate,Alexander Mann Solutions Limited,2377904,733.2,Not Applicable
Department for Business Energy and Industrial Strategy,Intellectual Property Office,02/08/2021,Pay Costs,People Places & Serv Directorate,Alexander Mann Solutions Limited,2377907,"2,486.84",Not Applicable
Department for Business Energy and Industrial Strategy,Intellectual Property Office,02/08/2021,Pay Costs,People Places & Serv Directorate,Alexander Mann Solutions Limited,2377908,"2,585.41",Not Applicable
Department for Business Energy and Industrial Strategy,Intellectual Property Office,02/08/2021,Pay Costs,Patent Directorate,Alexander Mann Solutions Limited,2377918,"5,858.59",Not Applicable
Department for Business Energy and Industrial Strategy,Intellectual Property Office,02/08/2021,Pay Costs,Patent Directorate,Alexander Mann Solutions Limited,2377921,"1,246.51",Not Applicable
Department for Business Energy and Industrial Strategy,Intellectual Property Office,06/08/2021,Pay Costs,Finance Directorate,Alexander Mann Solutions Limited,2383868,688.2,Not Applicable
Department for Business Energy and Industrial Strategy,Intellectual Property Office,10/08/2021,Pay Costs,IT Directorate,Alexander Mann Solutions Limited,2383869,"1,200.96",Not Applicable
Department for Business Energy and Industrial Strategy,Intellectual Property Office,10/08/2021,Pay Costs,IT Directorate,Alexander Mann Solutions Limited,2383870,"6,858.94",Not Applicable
Department for Business Energy and Industrial Strategy,Intellectual Property Office,06/08/2021,Pay Costs,IT Directorate,Alexander Mann Solutions Limited,2383871,"2,930.40",Not Applicable
Department for Business Energy and Industrial Strategy,Intellectual Property Office,06/08/2021,Pay Costs,Projects,Alexander Mann Solutions Limited,2383875,"1,005.89",Not Applicable
Department for Business Energy and Industrial Strategy,Intellectual Property Office,10/08/2021,Pay Costs,Trade Mark Directorate,Alexander Mann Solutions Limited,2383876,"1,169.33",Not Applicable
Department for Business Energy and Industrial Strategy,Intellectual Property Office,10/08/2021,Pay Costs,People Places & Serv Directorate,Alexander Mann Solutions Limited,2383877,"7,560.68",Not Applicable
Department for Business Energy and Industrial Strategy,Intellectual Property Office,10/08/2021,Pay Costs,People Places & Serv Directorate,Alexander Mann Solutions Limited,2383879,"6,300.58",Not Applicable
Department for Business Energy and Industrial Strategy,Intellectual Property Office,06/08/2021,Pay Costs,IT Directorate,Alexander Mann Solutions Limited,2383881,"3,436.00",Not Applicable
Department for Business Energy and Industrial Strategy,Intellectual Property Office,06/08/2021,Pay Costs,People Places & Serv Directorate,Alexander Mann Solutions Limited,2383882,861.8,Not Applicable
Department for Business Energy and Industrial Strategy,Intellectual Property Office,10/08/2021,Pay Costs,Patent Directorate,Alexander Mann Solutions Limited,2383885,627.89,Not Applicable
Department for Business Energy and Industrial Strategy,Intellectual Property Office,06/08/2021,Pay Costs,Patent Directorate,Alexander Mann Solutions Limited,2383886,634.96,Not Applicable
Department for Business Energy and Industrial Strategy,Intellectual Property Office,10/08/2021,Pay Costs,Patent Directorate,Alexander Mann Solutions Limited,2383887,"2,243.71",Not Applicable
Department for Business Energy and Industrial Strategy,Intellectual Property Office,06/08/2021,Pay Costs,Projects,Alexander Mann Solutions Limited,2383888,"3,695.64",Not Applicable
Department for Business Energy and Industrial Strategy,Intellectual Property Office,06/08/2021,Pay Costs,IT Directorate,Alexander Mann Solutions Limited,2383889,"2,255.58",Not Applicable
Department for Business Energy and Industrial Strategy,Intellectual Property Office,10/08/2021,Pay Costs,IT Directorate,Alexander Mann Solutions Limited,2383890,"16,042.60",Not Applicable
Department for Business Energy and Industrial Strategy,Intellectual Property Office,06/08/2021,Pay Costs,IT Directorate,Alexander Mann Solutions Limited,2383891,"5,849.42",Not Applicable
Department for Business Energy and Industrial Strategy,Intellectual Property Office,10/08/2021,Pay Costs,Patent Directorate,Alexander Mann Solutions Limited,2383892,716.87,Not Applicable
Department for Business Energy and Industrial Strategy,Intellectual Property Office,10/08/2021,Pay Costs,Patent Directorate,Alexander Mann Solutions Limited,2383893,"1,911.16",Not Applicable
Department for Business Energy and Industrial Strategy,Intellectual Property Office,10/08/2021,Pay Costs,Patent Directorate,Alexander Mann Solutions Limited,2383894,"5,699.14",Not Applicable
Department for Business Energy and Industrial Strategy,Intellectual Property Office,06/08/2021,Pay Costs,Finance Directorate,Alexander Mann Solutions Limited,2383895,546.84,Not Applicable
Department for Business Energy and Industrial Strategy,Intellectual Property Office,10/08/2021,Pay Costs,Patent Directorate,Alexander Mann Solutions Limited,2383898,662.56,Not Applicable
Department for Business Energy and Industrial Strategy,Intellectual Property Office,10/08/2021,Pay Costs,Patent Directorate,Alexander Mann Solutions Limited,2383899,654.08,Not Applicable
Department for Business Energy and Industrial Strategy,Intellectual Property Office,06/08/2021,Pay Costs,Patent Directorate,Alexander Mann Solutions Limited,2383900,626.48,Not Applicable
Department for Business Energy and Industrial Strategy,Intellectual Property Office,06/08/2021,Pay Costs,Patent Directorate,Alexander Mann Solutions Limited,2383901,626.48,Not Applicable
Department for Business Energy and Industrial Strategy,Intellectual Property Office,06/08/2021,Pay Costs,IT Directorate,Alexander Mann Solutions Limited,2383902,"2,989.92",Not Applicable
Department for Business Energy and Industrial Strategy,Intellectual Property Office,10/08/2021,Pay Costs,Patent Directorate,Alexander Mann Solutions Limited,2383903,514.32,Not Applicable
Department for Business Energy and Industrial Strategy,Intellectual Property Office,10/08/2021,Pay Costs,Patent Directorate,Alexander Mann Solutions Limited,2383904,877.68,Not Applicable
Department for Business Energy and Industrial Strategy,Intellectual Property Office,06/08/2021,Pay Costs,Patent Directorate,Alexander Mann Solutions Limited,2383906,507.96,Not Applicable
Department for Business Energy and Industrial Strategy,Intellectual Property Office,06/08/2021,Pay Costs,IT Directorate,Alexander Mann Solutions Limited,2383907,"3,026.22",Not Applicable
Department for Business Energy and Industrial Strategy,Intellectual Property Office,06/08/2021,Pay Costs,IT Directorate,Alexander Mann Solutions Limited,2383908,961.72,Not Applicable
Department for Business Energy and Industrial Strategy,Intellectual Property Office,06/08/2021,Pay Costs,Patent Directorate,Alexander Mann Solutions Limited,2383909,612.46,Not Applicable
Department for Business Energy and Industrial Strategy,Intellectual Property Office,06/08/2021,Information Technology,IT Directorate,Alexander Mann Solutions Limited,2383910,"91,095.96",Not Applicable
Department for Business Energy and Industrial Strategy,Intellectual Property Office,06/08/2021,Pay Costs,Patent Directorate,Alexander Mann Solutions Limited,2383912,588.3,Not Applicable
Department for Business Energy and Industrial Strategy,Intellectual Property Office,06/08/2021,Pay Costs,Trade Mark Directorate,Alexander Mann Solutions Limited,2383914,738.82,Not Applicable
Department for Business Energy and Industrial Strategy,Intellectual Property Office,06/08/2021,Pay Costs,Patent Directorate,Alexander Mann Solutions Limited,2383915,558,Not Applicable
Department for Business Energy and Industrial Strategy,Intellectual Property Office,06/08/2021,Pay Costs,IT Directorate,Alexander Mann Solutions Limited,2383916,"2,412.22",Not Applicable
Department for Business Energy and Industrial Strategy,Intellectual Property Office,06/08/2021,Pay Costs,Patent Directorate,Alexander Mann Solutions Limited,2383917,622.36,Not Applicable
Department for Business Energy and Industrial Strategy,Intellectual Property Office,06/08/2021,Pay Costs,IT Directorate,Alexander Mann Solutions Limited,2383918,"3,599.58",Not Applicable
Department for Business Energy and Industrial Strategy,Intellectual Property Office,06/08/2021,Pay Costs,Patent Directorate,Alexander Mann Solutions Limited,2383919,622.36,Not Applicable
Department for Business Energy and Industrial Strategy,Intellectual Property Office,06/08/2021,Pay Costs,Patent Directorate,Alexander Mann Solutions Limited,2383920,596.26,Not Applicable
Department for Business Energy and Industrial Strategy,Intellectual Property Office,10/08/2021,Pay Costs,Patent Directorate,Alexander Mann Solutions Limited,2383921,615.9,Not Applicable
Department for Business Energy and Industrial Strategy,Intellectual Property Office,06/08/2021,Pay Costs,Patent Directorate,Alexander Mann Solutions Limited,2383922,688.2,Not Applicable
Department for Business Energy and Industrial Strategy,Intellectual Property Office,06/08/2021,Pay Costs,Trade Mark Directorate,Alexander Mann Solutions Limited,2383924,738.82,Not Applicable
Department for Business Energy and Industrial Strategy,Intellectual Property Office,06/08/2021,Pay Costs,Trade Mark Directorate,Alexander Mann Solutions Limited,2383925,738.82,Not Applicable
Department for Business Energy and Industrial Strategy,Intellectual Property Office,06/08/2021,Pay Costs,Trade Mark Directorate,Alexander Mann Solutions Limited,2383926,"1,477.63",Not Applicable
Department for Business Energy and Industrial Strategy,Intellectual Property Office,06/08/2021,Pay Costs,Trade Mark Directorate,Alexander Mann Solutions Limited,2383927,688.9,Not Applicable
Department for Business Energy and Industrial Strategy,Intellectual Property Office,06/08/2021,Pay Costs,Trade Mark Directorate,Alexander Mann Solutions Limited,2383928,738.82,Not Applicable
Department for Business Energy and Industrial Strategy,Intellectual Property Office,06/08/2021,Pay Costs,Trade Mark Directorate,Alexander Mann Solutions Limited,2383929,"1,327.87",Not Applicable
Department for Business Energy and Industrial Strategy,Intellectual Property Office,10/08/2021,Pay Costs,Trade Mark Directorate,Alexander Mann Solutions Limited,2383930,"2,216.45",Not Applicable
Department for Business Energy and Industrial Strategy,Intellectual Property Office,06/08/2021,Pay Costs,Trade Mark Directorate,Alexander Mann Solutions Limited,2383931,738.82,Not Applicable
Department for Business Energy and Industrial Strategy,Intellectual Property Office,06/08/2021,Pay Costs,Trade Mark Directorate,Alexander Mann Solutions Limited,2383932,738.82,Not Applicable
Department for Business Energy and Industrial Strategy,Intellectual Property Office,06/08/2021,Pay Costs,Trade Mark Directorate,Alexander Mann Solutions Limited,2383933,738.82,Not Applicable
Department for Business Energy and Industrial Strategy,Intellectual Property Office,06/08/2021,Pay Costs,Trade Mark Directorate,Alexander Mann Solutions Limited,2383934,738.82,Not Applicable
Department for Business Energy and Industrial Strategy,Intellectual Property Office,06/08/2021,Pay Costs,Trade Mark Directorate,Alexander Mann Solutions Limited,2383935,738.82,Not Applicable
Department for Business Energy and Industrial Strategy,Intellectual Property Office,06/08/2021,Pay Costs,Trade Mark Directorate,Alexander Mann Solutions Limited,2383936,738.82,Not Applicable
Department for Business Energy and Industrial Strategy,Intellectual Property Office,06/08/2021,Pay Costs,Trade Mark Directorate,Alexander Mann Solutions Limited,2383937,738.82,Not Applicable
Department for Business Energy and Industrial Strategy,Intellectual Property Office,06/08/2021,Pay Costs,Trade Mark Directorate,Alexander Mann Solutions Limited,2383938,599.04,Not Applicable
Department for Business Energy and Industrial Strategy,Intellectual Property Office,06/08/2021,Pay Costs,Trade Mark Directorate,Alexander Mann Solutions Limited,2383939,738.82,Not Applicable
Department for Business Energy and Industrial Strategy,Intellectual Property Office,06/08/2021,Pay Costs,Patent Directorate,Alexander Mann Solutions Limited,2383941,688.2,Not Applicable
Department for Business Energy and Industrial Strategy,Intellectual Property Office,13/08/2021,Pay Costs,Finance Directorate,Alexander Mann Solutions Limited,2388285,688.2,Not Applicable
Department for Business Energy and Industrial Strategy,Intellectual Property Office,13/08/2021,Pay Costs,IT Directorate,Alexander Mann Solutions Limited,2388286,"1,067.52",Not Applicable
Department for Business Energy and Industrial Strategy,Intellectual Property Office,13/08/2021,Pay Costs,Patent Directorate,Alexander Mann Solutions Limited,2388288,592.62,Not Applicable
Department for Business Energy and Industrial Strategy,Intellectual Property Office,13/08/2021,Pay Costs,Trade Mark Directorate,Alexander Mann Solutions Limited,2388289,754.36,Not Applicable
Department for Business Energy and Industrial Strategy,Intellectual Property Office,13/08/2021,Pay Costs,Trade Mark Directorate,Alexander Mann Solutions Limited,2388290,754.36,Not Applicable
Department for Business Energy and Industrial Strategy,Intellectual Property Office,13/08/2021,Pay Costs,IT Directorate,Alexander Mann Solutions Limited,2388291,"3,464.06",Not Applicable
Department for Business Energy and Industrial Strategy,Intellectual Property Office,13/08/2021,Pay Costs,Projects,Alexander Mann Solutions Limited,2388293,"3,695.64",Not Applicable
Department for Business Energy and Industrial Strategy,Intellectual Property Office,16/08/2021,Pay Costs,IT Directorate,Alexander Mann Solutions Limited,2388294,"10,019.69",Not Applicable
Department for Business Energy and Industrial Strategy,Intellectual Property Office,16/08/2021,Pay Costs,Finance Directorate,Alexander Mann Solutions Limited,2388295,"3,079.62",Not Applicable
Department for Business Energy and Industrial Strategy,Intellectual Property Office,13/08/2021,Pay Costs,IT Directorate,Alexander Mann Solutions Limited,2388296,"2,255.58",Not Applicable
Department for Business Energy and Industrial Strategy,Intellectual Property Office,16/08/2021,Pay Costs,IT Directorate,Alexander Mann Solutions Limited,2388297,"1,890.18",Not Applicable
Department for Business Energy and Industrial Strategy,Intellectual Property Office,16/08/2021,Pay Costs,IT Directorate,Alexander Mann Solutions Limited,2388298,"1,134.11",Not Applicable
Department for Business Energy and Industrial Strategy,Intellectual Property Office,18/08/2021,Pay Costs,IT Directorate,Alexander Mann Solutions Limited,2388299,"2,750.63",Not Applicable
Department for Business Energy and Industrial Strategy,Intellectual Property Office,13/08/2021,Pay Costs,IT Directorate,Alexander Mann Solutions Limited,2388300,"3,079.68",Not Applicable
Department for Business Energy and Industrial Strategy,Intellectual Property Office,13/08/2021,Pay Costs,Patent Directorate,Alexander Mann Solutions Limited,2388301,623.26,Not Applicable
Department for Business Energy and Industrial Strategy,Intellectual Property Office,13/08/2021,Pay Costs,Finance Directorate,Alexander Mann Solutions Limited,2388302,674.44,Not Applicable
Department for Business Energy and Industrial Strategy,Intellectual Property Office,13/08/2021,Pay Costs,Patent Directorate,Alexander Mann Solutions Limited,2388303,508.8,Not Applicable
Department for Business Energy and Industrial Strategy,Intellectual Property Office,16/08/2021,Pay Costs,Patent Directorate,Alexander Mann Solutions Limited,2388304,787.63,Not Applicable
Department for Business Energy and Industrial Strategy,Intellectual Property Office,13/08/2021,Pay Costs,Patent Directorate,Alexander Mann Solutions Limited,2388305,630.72,Not Applicable
Department for Business Energy and Industrial Strategy,Intellectual Property Office,16/08/2021,Pay Costs,Patent Directorate,Alexander Mann Solutions Limited,2388306,888.94,Not Applicable
Department for Business Energy and Industrial Strategy,Intellectual Property Office,13/08/2021,Pay Costs,Patent Directorate,Alexander Mann Solutions Limited,2388308,626.48,Not Applicable
Department for Business Energy and Industrial Strategy,Intellectual Property Office,23/08/2021,Pay Costs,Patent Directorate,Alexander Mann Solutions Limited,2388309,"1,244.72",Not Applicable
Department for Business Energy and Industrial Strategy,Intellectual Property Office,13/08/2021,Pay Costs,Patent Directorate,Alexander Mann Solutions Limited,2388310,567.84,Not Applicable
Department for Business Energy and Industrial Strategy,Intellectual Property Office,13/08/2021,Pay Costs,Patent Directorate,Alexander Mann Solutions Limited,2388311,600.29,Not Applicable
Department for Business Energy and Industrial Strategy,Intellectual Property Office,16/08/2021,Pay Costs,Patent Directorate,Alexander Mann Solutions Limited,2388312,792.54,Not Applicable
Department for Business Energy and Industrial Strategy,Intellectual Property Office,13/08/2021,Pay Costs,Patent Directorate,Alexander Mann Solutions Limited,2388313,507.96,Not Applicable
Department for Business Energy and Industrial Strategy,Intellectual Property Office,13/08/2021,Pay Costs,Patent Directorate,Alexander Mann Solutions Limited,2388314,877.32,Not Applicable
Department for Business Energy and Industrial Strategy,Intellectual Property Office,16/08/2021,Pay Costs,IT Directorate,Alexander Mann Solutions Limited,2388315,"5,812.22",Not Applicable
Department for Business Energy and Industrial Strategy,Intellectual Property Office,13/08/2021,Pay Costs,IT Directorate,Alexander Mann Solutions Limited,2388316,"1,031.78",Not Applicable
Department for Business Energy and Industrial Strategy,Intellectual Property Office,13/08/2021,Pay Costs,Patent Directorate,Alexander Mann Solutions Limited,2388317,608.4,Not Applicable
Department for Business Energy and Industrial Strategy,Intellectual Property Office,16/08/2021,Information Technology,IT Directorate,Alexander Mann Solutions Limited,2388318,"15,706.20",Not Applicable
Department for Business Energy and Industrial Strategy,Intellectual Property Office,13/08/2021,Pay Costs,Patent Directorate,Alexander Mann Solutions Limited,2388319,588.3,Not Applicable
Department for Business Energy and Industrial Strategy,Intellectual Property Office,13/08/2021,Pay Costs,Trade Mark Directorate,Alexander Mann Solutions Limited,2388321,"1,612.42",Not Applicable
Department for Business Energy and Industrial Strategy,Intellectual Property Office,13/08/2021,Pay Costs,Trade Mark Directorate,Alexander Mann Solutions Limited,2388322,738.82,Not Applicable
Department for Business Energy and Industrial Strategy,Intellectual Property Office,13/08/2021,Pay Costs,IT Directorate,Alexander Mann Solutions Limited,2388323,"11,088.96",Not Applicable
Department for Business Energy and Industrial Strategy,Intellectual Property Office,13/08/2021,Pay Costs,Patent Directorate,Alexander Mann Solutions Limited,2388324,558,Not Applicable
Department for Business Energy and Industrial Strategy,Intellectual Property Office,13/08/2021,Pay Costs,Patent Directorate,Alexander Mann Solutions Limited,2388325,585.9,Not Applicable
Department for Business Energy and Industrial Strategy,Intellectual Property Office,13/08/2021,Pay Costs,Patent Directorate,Alexander Mann Solutions Limited,2388326,622.36,Not Applicable
Department for Business Energy and Industrial Strategy,Intellectual Property Office,13/08/2021,Pay Costs,Patent Directorate,Alexander Mann Solutions Limited,2388327,622.36,Not Applicable
Department for Business Energy and Industrial Strategy,Intellectual Property Office,13/08/2021,Pay Costs,Patent Directorate,Alexander Mann Solutions Limited,2388328,596.26,Not Applicable
Department for Business Energy and Industrial Strategy,Intellectual Property Office,13/08/2021,Pay Costs,Patent Directorate,Alexander Mann Solutions Limited,2388330,"1,073.26",Not Applicable
Department for Business Energy and Industrial Strategy,Intellectual Property Office,13/08/2021,Pay Costs,IT Directorate,Alexander Mann Solutions Limited,2388331,"8,820.84",Not Applicable
Department for Business Energy and Industrial Strategy,Intellectual Property Office,13/08/2021,Pay Costs,People Places & Serv Directorate,Alexander Mann Solutions Limited,2388332,660.3,Not Applicable
Department for Business Energy and Industrial Strategy,Intellectual Property Office,13/08/2021,Pay Costs,Patent Directorate,Alexander Mann Solutions Limited,2388333,558,Not Applicable
Department for Business Energy and Industrial Strategy,Intellectual Property Office,13/08/2021,Pay Costs,Trade Mark Directorate,Alexander Mann Solutions Limited,2388334,"1,477.63",Not Applicable
Department for Business Energy and Industrial Strategy,Intellectual Property Office,13/08/2021,Pay Costs,Trade Mark Directorate,Alexander Mann Solutions Limited,2388335,"1,477.63",Not Applicable
Department for Business Energy and Industrial Strategy,Intellectual Property Office,13/08/2021,Pay Costs,Trade Mark Directorate,Alexander Mann Solutions Limited,2388336,738.82,Not Applicable
Department for Business Energy and Industrial Strategy,Intellectual Property Office,13/08/2021,Pay Costs,Trade Mark Directorate,Alexander Mann Solutions Limited,2388337,738.82,Not Applicable
Department for Business Energy and Industrial Strategy,Intellectual Property Office,13/08/2021,Pay Costs,Trade Mark Directorate,Alexander Mann Solutions Limited,2388338,"1,477.63",Not Applicable
Department for Business Energy and Industrial Strategy,Intellectual Property Office,13/08/2021,Pay Costs,Trade Mark Directorate,Alexander Mann Solutions Limited,2388339,738.82,Not Applicable
Department for Business Energy and Industrial Strategy,Intellectual Property Office,13/08/2021,Pay Costs,Trade Mark Directorate,Alexander Mann Solutions Limited,2388340,738.82,Not Applicable
Department for Business Energy and Industrial Strategy,Intellectual Property Office,13/08/2021,Pay Costs,Trade Mark Directorate,Alexander Mann Solutions Limited,2388341,738.82,Not Applicable
Department for Business Energy and Industrial Strategy,Intellectual Property Office,13/08/2021,Pay Costs,Trade Mark Directorate,Alexander Mann Solutions Limited,2388342,738.82,Not Applicable
Department for Business Energy and Industrial Strategy,Intellectual Property Office,13/08/2021,Pay Costs,Trade Mark Directorate,Alexander Mann Solutions Limited,2388343,"2,955.26",Not Applicable
Department for Business Energy and Industrial Strategy,Intellectual Property Office,13/08/2021,Pay Costs,Trade Mark Directorate,Alexander Mann Solutions Limited,2388344,738.82,Not Applicable
Department for Business Energy and Industrial Strategy,Intellectual Property Office,13/08/2021,Pay Costs,Trade Mark Directorate,Alexander Mann Solutions Limited,2388345,738.82,Not Applicable
Department for Business Energy and Industrial Strategy,Intellectual Property Office,13/08/2021,Pay Costs,Trade Mark Directorate,Alexander Mann Solutions Limited,2388346,738.82,Not Applicable
Department for Business Energy and Industrial Strategy,Intellectual Property Office,13/08/2021,Pay Costs,Trade Mark Directorate,Alexander Mann Solutions Limited,2388347,"2,915.33",Not Applicable
Department for Business Energy and Industrial Strategy,Intellectual Property Office,13/08/2021,Pay Costs,Trade Mark Directorate,Alexander Mann Solutions Limited,2388348,589.06,Not Applicable
Department for Business Energy and Industrial Strategy,Intellectual Property Office,13/08/2021,Pay Costs,Trade Mark Directorate,Alexander Mann Solutions Limited,2388349,738.82,Not Applicable
Department for Business Energy and Industrial Strategy,Intellectual Property Office,18/08/2021,Pay Costs,Trade Mark Directorate,Alexander Mann Solutions Limited,2388350,"1,477.63",Not Applicable
Department for Business Energy and Industrial Strategy,Intellectual Property Office,18/08/2021,Pay Costs,Trade Mark Directorate,Alexander Mann Solutions Limited,2388351,"2,216.45",Not Applicable
Department for Business Energy and Industrial Strategy,Intellectual Property Office,18/08/2021,Pay Costs,Trade Mark Directorate,Alexander Mann Solutions Limited,2388352,"1,477.63",Not Applicable
Department for Business Energy and Industrial Strategy,Intellectual Property Office,13/08/2021,Pay Costs,Trade Mark Directorate,Alexander Mann Solutions Limited,2388353,738.82,Not Applicable
Department for Business Energy and Industrial Strategy,Intellectual Property Office,16/08/2021,Pay Costs,Trade Mark Directorate,Alexander Mann Solutions Limited,2388354,738.82,Not Applicable
Department for Business Energy and Industrial Strategy,Intellectual Property Office,18/08/2021,Pay Costs,Trade Mark Directorate,Alexander Mann Solutions Limited,2388355,"1,477.63",Not Applicable
Department for Business Energy and Industrial Strategy,Intellectual Property Office,16/08/2021,Pay Costs,Trade Mark Directorate,Alexander Mann Solutions Limited,2388356,599.04,Not Applicable
Department for Business Energy and Industrial Strategy,Intellectual Property Office,13/08/2021,Pay Costs,Trade Mark Directorate,Alexander Mann Solutions Limited,2388357,"1,477.63",Not Applicable
Department for Business Energy and Industrial Strategy,Intellectual Property Office,13/08/2021,Pay Costs,Patent Directorate,Alexander Mann Solutions Limited,2388358,"1,161.72",Not Applicable
Department for Business Energy and Industrial Strategy,Intellectual Property Office,13/08/2021,Pay Costs,IT Directorate,Alexander Mann Solutions Limited,2388359,"3,780.36",Not Applicable
Department for Business Energy and Industrial Strategy,Intellectual Property Office,13/08/2021,Pay Costs,Patent Directorate,Alexander Mann Solutions Limited,2388360,688.2,Not Applicable
Department for Business Energy and Industrial Strategy,Intellectual Property Office,13/08/2021,Pay Costs,Patent Directorate,Alexander Mann Solutions Limited,2388361,711.46,Not Applicable
Department for Business Energy and Industrial Strategy,Intellectual Property Office,23/08/2021,Pay Costs,IT Directorate,Alexander Mann Solutions Limited,2392412,"1,334.40",Not Applicable
Department for Business Energy and Industrial Strategy,Intellectual Property Office,23/08/2021,Pay Costs,IT Directorate,Alexander Mann Solutions Limited,2392413,"3,448.10",Not Applicable
Department for Business Energy and Industrial Strategy,Intellectual Property Office,20/08/2021,Pay Costs,IT Directorate,Alexander Mann Solutions Limited,2392414,"2,277.00",Not Applicable
Department for Business Energy and Industrial Strategy,Intellectual Property Office,20/08/2021,Pay Costs,Patent Directorate,Alexander Mann Solutions Limited,2392416,592.62,Not Applicable
Department for Business Energy and Industrial Strategy,Intellectual Property Office,20/08/2021,Pay Costs,IT Directorate,Alexander Mann Solutions Limited,2392417,"3,531.86",Not Applicable
Department for Business Energy and Industrial Strategy,Intellectual Property Office,20/08/2021,Pay Costs,Trade Mark Directorate,Alexander Mann Solutions Limited,2392418,601.45,Not Applicable
Department for Business Energy and Industrial Strategy,Intellectual Property Office,23/08/2021,Pay Costs,People Places & Serv Directorate,Alexander Mann Solutions Limited,2392419,"8,820.79",Not Applicable
Department for Business Energy and Industrial Strategy,Intellectual Property Office,23/08/2021,Pay Costs,People Places & Serv Directorate,Alexander Mann Solutions Limited,2392420,"1,723.61",Not Applicable
Department for Business Energy and Industrial Strategy,Intellectual Property Office,20/08/2021,Pay Costs,Patent Directorate,Alexander Mann Solutions Limited,2392421,787.63,Not Applicable
Department for Business Energy and Industrial Strategy,Intellectual Property Office,20/08/2021,Pay Costs,Projects,Alexander Mann Solutions Limited,2392422,"3,695.64",Not Applicable
Department for Business Energy and Industrial Strategy,Intellectual Property Office,20/08/2021,Pay Costs,IT Directorate,Alexander Mann Solutions Limited,2392423,"2,255.58",Not Applicable
Department for Business Energy and Industrial Strategy,Intellectual Property Office,24/08/2021,Pay Costs,IT Directorate,Alexander Mann Solutions Limited,2392424,"1,134.11",Not Applicable
Department for Business Energy and Industrial Strategy,Intellectual Property Office,23/08/2021,Pay Costs,IT Directorate,Alexander Mann Solutions Limited,2392425,"3,079.68",Not Applicable
Department for Business Energy and Industrial Strategy,Intellectual Property Office,20/08/2021,Pay Costs,Patent Directorate,Alexander Mann Solutions Limited,2392426,623.26,Not Applicable
Department for Business Energy and Industrial Strategy,Intellectual Property Office,23/08/2021,Pay Costs,Finance Directorate,Alexander Mann Solutions Limited,2392427,596.96,Not Applicable
Department for Business Energy and Industrial Strategy,Intellectual Property Office,20/08/2021,Pay Costs,Patent Directorate,Alexander Mann Solutions Limited,2392428,600.29,Not Applicable
Department for Business Energy and Industrial Strategy,Intellectual Property Office,23/08/2021,Pay Costs,Patent Directorate,Alexander Mann Solutions Limited,2392429,"3,184.78",Not Applicable
Department for Business Energy and Industrial Strategy,Intellectual Property Office,20/08/2021,Pay Costs,Patent Directorate,Alexander Mann Solutions Limited,2392431,626.48,Not Applicable
Department for Business Energy and Industrial Strategy,Intellectual Property Office,20/08/2021,Pay Costs,Patent Directorate,Alexander Mann Solutions Limited,2392433,626.48,Not Applicable
Department for Business Energy and Industrial Strategy,Intellectual Property Office,23/08/2021,Pay Costs,Patent Directorate,Alexander Mann Solutions Limited,2392434,605.76,Not Applicable
Department for Business Energy and Industrial Strategy,Intellectual Property Office,23/08/2021,Pay Costs,IT Directorate,Alexander Mann Solutions Limited,2392435,"5,979.84",Not Applicable
Department for Business Energy and Industrial Strategy,Intellectual Property Office,23/08/2021,Pay Costs,Patent Directorate,Alexander Mann Solutions Limited,2392437,850.08,Not Applicable
Department for Business Energy and Industrial Strategy,Intellectual Property Office,20/08/2021,Pay Costs,Patent Directorate,Alexander Mann Solutions Limited,2392438,708.73,Not Applicable
Department for Business Energy and Industrial Strategy,Intellectual Property Office,20/08/2021,Pay Costs,Patent Directorate,Alexander Mann Solutions Limited,2392439,507.96,Not Applicable
Department for Business Energy and Industrial Strategy,Intellectual Property Office,24/08/2021,Pay Costs,Patent Directorate,Alexander Mann Solutions Limited,2392440,"2,798.46",Not Applicable
Department for Business Energy and Industrial Strategy,Intellectual Property Office,20/08/2021,Pay Costs,IT Directorate,Alexander Mann Solutions Limited,2392441,"3,367.90",Not Applicable
Department for Business Energy and Industrial Strategy,Intellectual Property Office,20/08/2021,Pay Costs,IT Directorate,Alexander Mann Solutions Limited,2392442,"2,889.11",Not Applicable
Department for Business Energy and Industrial Strategy,Intellectual Property Office,23/08/2021,Pay Costs,Projects,Alexander Mann Solutions Limited,2392443,"13,609.30",Not Applicable
Department for Business Energy and Industrial Strategy,Intellectual Property Office,23/08/2021,Pay Costs,Projects,Alexander Mann Solutions Limited,2392444,"6,369.41",Not Applicable
Department for Business Energy and Industrial Strategy,Intellectual Property Office,20/08/2021,Pay Costs,IT Directorate,Alexander Mann Solutions Limited,2392445,993.56,Not Applicable
Department for Business Energy and Industrial Strategy,Intellectual Property Office,20/08/2021,Pay Costs,Patent Directorate,Alexander Mann Solutions Limited,2392446,620.57,Not Applicable
Department for Business Energy and Industrial Strategy,Intellectual Property Office,20/08/2021,Pay Costs,Patent Directorate,Alexander Mann Solutions Limited,2392447,588.3,Not Applicable
Department for Business Energy and Industrial Strategy,Intellectual Property Office,20/08/2021,Pay Costs,Patent Directorate,Alexander Mann Solutions Limited,2392448,511.06,Not Applicable
Department for Business Energy and Industrial Strategy,Intellectual Property Office,20/08/2021,Pay Costs,Trade Mark Directorate,Alexander Mann Solutions Limited,2392449,788.74,Not Applicable
Department for Business Energy and Industrial Strategy,Intellectual Property Office,20/08/2021,Pay Costs,Trade Mark Directorate,Alexander Mann Solutions Limited,2392450,738.82,Not Applicable
Department for Business Energy and Industrial Strategy,Intellectual Property Office,23/08/2021,Pay Costs,IT Directorate,Alexander Mann Solutions Limited,2392451,"5,544.48",Not Applicable
Department for Business Energy and Industrial Strategy,Intellectual Property Office,23/08/2021,Pay Costs,Patent Directorate,Alexander Mann Solutions Limited,2392452,"1,246.20",Not Applicable
Department for Business Energy and Industrial Strategy,Intellectual Property Office,23/08/2021,Pay Costs,IT Directorate,Alexander Mann Solutions Limited,2392453,"4,835.80",Not Applicable
Department for Business Energy and Industrial Strategy,Intellectual Property Office,20/08/2021,Pay Costs,Patent Directorate,Alexander Mann Solutions Limited,2392454,622.36,Not Applicable
Department for Business Energy and Industrial Strategy,Intellectual Property Office,20/08/2021,Pay Costs,IT Directorate,Alexander Mann Solutions Limited,2392455,"1,439.83",Not Applicable
Department for Business Energy and Industrial Strategy,Intellectual Property Office,20/08/2021,Pay Costs,Patent Directorate,Alexander Mann Solutions Limited,2392456,622.36,Not Applicable
Department for Business Energy and Industrial Strategy,Intellectual Property Office,20/08/2021,Pay Costs,Patent Directorate,Alexander Mann Solutions Limited,2392457,516.76,Not Applicable
Department for Business Energy and Industrial Strategy,Intellectual Property Office,20/08/2021,Pay Costs,Patent Directorate,Alexander Mann Solutions Limited,2392458,588.3,Not Applicable
Department for Business Energy and Industrial Strategy,Intellectual Property Office,20/08/2021,Pay Costs,IT Directorate,Alexander Mann Solutions Limited,2392460,"4,410.42",Not Applicable
Department for Business Energy and Industrial Strategy,Intellectual Property Office,20/08/2021,Pay Costs,Patent Directorate,Alexander Mann Solutions Limited,2392461,688.2,Not Applicable
Department for Business Energy and Industrial Strategy,Intellectual Property Office,20/08/2021,Pay Costs,Trade Mark Directorate,Alexander Mann Solutions Limited,2392462,738.82,Not Applicable
Department for Business Energy and Industrial Strategy,Intellectual Property Office,20/08/2021,Pay Costs,Trade Mark Directorate,Alexander Mann Solutions Limited,2392463,"1,477.63",Not Applicable
Department for Business Energy and Industrial Strategy,Intellectual Property Office,20/08/2021,Pay Costs,Trade Mark Directorate,Alexander Mann Solutions Limited,2392464,738.82,Not Applicable
Department for Business Energy and Industrial Strategy,Intellectual Property Office,20/08/2021,Pay Costs,Trade Mark Directorate,Alexander Mann Solutions Limited,2392465,"1,477.63",Not Applicable
Department for Business Energy and Industrial Strategy,Intellectual Property Office,20/08/2021,Pay Costs,Trade Mark Directorate,Alexander Mann Solutions Limited,2392466,738.82,Not Applicable
Department for Business Energy and Industrial Strategy,Intellectual Property Office,20/08/2021,Pay Costs,Trade Mark Directorate,Alexander Mann Solutions Limited,2392467,738.82,Not Applicable
Department for Business Energy and Industrial Strategy,Intellectual Property Office,20/08/2021,Pay Costs,Trade Mark Directorate,Alexander Mann Solutions Limited,2392468,738.82,Not Applicable
Department for Business Energy and Industrial Strategy,Intellectual Property Office,20/08/2021,Pay Costs,Trade Mark Directorate,Alexander Mann Solutions Limited,2392469,"1,407.74",Not Applicable
Department for Business Energy and Industrial Strategy,Intellectual Property Office,20/08/2021,Pay Costs,Trade Mark Directorate,Alexander Mann Solutions Limited,2392470,725.5,Not Applicable
Department for Business Energy and Industrial Strategy,Intellectual Property Office,20/08/2021,Pay Costs,Trade Mark Directorate,Alexander Mann Solutions Limited,2392471,738.82,Not Applicable
Department for Business Energy and Industrial Strategy,Intellectual Property Office,20/08/2021,Pay Costs,Trade Mark Directorate,Alexander Mann Solutions Limited,2392472,738.82,Not Applicable
Department for Business Energy and Industrial Strategy,Intellectual Property Office,20/08/2021,Pay Costs,Trade Mark Directorate,Alexander Mann Solutions Limited,2392473,738.82,Not Applicable
Department for Business Energy and Industrial Strategy,Intellectual Property Office,20/08/2021,Pay Costs,Trade Mark Directorate,Alexander Mann Solutions Limited,2392474,738.82,Not Applicable
Department for Business Energy and Industrial Strategy,Intellectual Property Office,20/08/2021,Pay Costs,Trade Mark Directorate,Alexander Mann Solutions Limited,2392475,"1,267.97",Not Applicable
Department for Business Energy and Industrial Strategy,Intellectual Property Office,20/08/2021,Pay Costs,Trade Mark Directorate,Alexander Mann Solutions Limited,2392476,738.82,Not Applicable
Department for Business Energy and Industrial Strategy,Intellectual Property Office,20/08/2021,Pay Costs,Patent Directorate,Alexander Mann Solutions Limited,2392477,580.86,Not Applicable
Department for Business Energy and Industrial Strategy,Intellectual Property Office,20/08/2021,Pay Costs,IT Directorate,Alexander Mann Solutions Limited,2392478,"9,828.94",Not Applicable
Department for Business Energy and Industrial Strategy,Intellectual Property Office,20/08/2021,Pay Costs,Patent Directorate,Alexander Mann Solutions Limited,2392479,814.08,Not Applicable
Department for Business Energy and Industrial Strategy,Intellectual Property Office,20/08/2021,Pay Costs,IT Directorate,Alexander Mann Solutions Limited,2392480,"3,780.36",Not Applicable
Department for Business Energy and Industrial Strategy,Intellectual Property Office,20/08/2021,Information Technology,IT Directorate,Alexander Mann Solutions Limited,2392481,"14,135.58",Not Applicable
Department for Business Energy and Industrial Strategy,Intellectual Property Office,20/08/2021,Pay Costs,Patent Directorate,Alexander Mann Solutions Limited,2392482,725.4,Not Applicable
Department for Business Energy and Industrial Strategy,Intellectual Property Office,27/08/2021,Pay Costs,IT Directorate,Alexander Mann Solutions Limited,2396634,"1,334.40",Not Applicable
Department for Business Energy and Industrial Strategy,Intellectual Property Office,27/08/2021,Pay Costs,Patent Directorate,Alexander Mann Solutions Limited,2396636,592.62,Not Applicable
Department for Business Energy and Industrial Strategy,Intellectual Property Office,27/08/2021,Pay Costs,IT Directorate,Alexander Mann Solutions Limited,2396637,"2,679.16",Not Applicable
Department for Business Energy and Industrial Strategy,Intellectual Property Office,31/08/2021,Pay Costs,Projects,Alexander Mann Solutions Limited,2396638,"3,646.34",Not Applicable
Department for Business Energy and Industrial Strategy,Intellectual Property Office,27/08/2021,Pay Costs,IT Directorate,Alexander Mann Solutions Limited,2396640,"3,538.31",Not Applicable
Department for Business Energy and Industrial Strategy,Intellectual Property Office,27/08/2021,Pay Costs,People Places & Serv Directorate,Alexander Mann Solutions Limited,2396641,861.8,Not Applicable
Department for Business Energy and Industrial Strategy,Intellectual Property Office,31/08/2021,Pay Costs,Patent Directorate,Alexander Mann Solutions Limited,2396643,"1,200.58",Not Applicable
Department for Business Energy and Industrial Strategy,Intellectual Property Office,31/08/2021,Pay Costs,Projects,Alexander Mann Solutions Limited,2396644,"3,695.64",Not Applicable
Department for Business Energy and Industrial Strategy,Intellectual Property Office,31/08/2021,Pay Costs,IT Directorate,Alexander Mann Solutions Limited,2396645,"8,322.00",Not Applicable
Department for Business Energy and Industrial Strategy,Intellectual Property Office,27/08/2021,Pay Costs,Finance Directorate,Alexander Mann Solutions Limited,2396646,"6,159.24",Not Applicable
Department for Business Energy and Industrial Strategy,Intellectual Property Office,27/08/2021,Pay Costs,IT Directorate,Alexander Mann Solutions Limited,2396647,"2,255.58",Not Applicable
Department for Business Energy and Industrial Strategy,Intellectual Property Office,27/08/2021,Pay Costs,Finance Directorate,Alexander Mann Solutions Limited,2396648,674.44,Not Applicable
Department for Business Energy and Industrial Strategy,Intellectual Property Office,31/08/2021,Pay Costs,Patent Directorate,Alexander Mann Solutions Limited,2396650,596.26,Not Applicable
Department for Business Energy and Industrial Strategy,Intellectual Property Office,27/08/2021,Pay Costs,Patent Directorate,Alexander Mann Solutions Limited,2396651,616.51,Not Applicable
Department for Business Energy and Industrial Strategy,Intellectual Property Office,31/08/2021,Pay Costs,Patent Directorate,Alexander Mann Solutions Limited,2396653,"1,200.58",Not Applicable
Department for Business Energy and Industrial Strategy,Intellectual Property Office,27/08/2021,Pay Costs,Patent Directorate,Alexander Mann Solutions Limited,2396654,634.96,Not Applicable
Department for Business Energy and Industrial Strategy,Intellectual Property Office,27/08/2021,Pay Costs,Patent Directorate,Alexander Mann Solutions Limited,2396655,626.48,Not Applicable
Department for Business Energy and Industrial Strategy,Intellectual Property Office,31/08/2021,Pay Costs,Patent Directorate,Alexander Mann Solutions Limited,2396656,626.48,Not Applicable
Department for Business Energy and Industrial Strategy,Intellectual Property Office,27/08/2021,Pay Costs,Patent Directorate,Alexander Mann Solutions Limited,2396657,626.48,Not Applicable
Department for Business Energy and Industrial Strategy,Intellectual Property Office,31/08/2021,Pay Costs,Patent Directorate,Alexander Mann Solutions Limited,2396659,"1,005.89",Not Applicable
Department for Business Energy and Industrial Strategy,Intellectual Property Office,31/08/2021,Pay Costs,Patent Directorate,Alexander Mann Solutions Limited,2396661,"1,200.58",Not Applicable
Department for Business Energy and Industrial Strategy,Intellectual Property Office,31/08/2021,Pay Costs,Patent Directorate,Alexander Mann Solutions Limited,2396663,867.98,Not Applicable
Department for Business Energy and Industrial Strategy,Intellectual Property Office,27/08/2021,Pay Costs,Patent Directorate,Alexander Mann Solutions Limited,2396664,634.96,Not Applicable
Department for Business Energy and Industrial Strategy,Intellectual Property Office,27/08/2021,Pay Costs,IT Directorate,Alexander Mann Solutions Limited,2396666,"3,611.94",Not Applicable
Department for Business Energy and Industrial Strategy,Intellectual Property Office,27/08/2021,Pay Costs,Projects,Alexander Mann Solutions Limited,2396667,"3,980.88",Not Applicable
Department for Business Energy and Industrial Strategy,Intellectual Property Office,27/08/2021,Pay Costs,IT Directorate,Alexander Mann Solutions Limited,2396668,961.72,Not Applicable
Department for Business Energy and Industrial Strategy,Intellectual Property Office,27/08/2021,Pay Costs,Patent Directorate,Alexander Mann Solutions Limited,2396669,624.62,Not Applicable
Department for Business Energy and Industrial Strategy,Intellectual Property Office,31/08/2021,Pay Costs,Patent Directorate,Alexander Mann Solutions Limited,2396671,"1,176.60",Not Applicable
Department for Business Energy and Industrial Strategy,Intellectual Property Office,27/08/2021,Pay Costs,Patent Directorate,Alexander Mann Solutions Limited,2396673,634.96,Not Applicable
Department for Business Energy and Industrial Strategy,Intellectual Property Office,27/08/2021,Pay Costs,Patent Directorate,Alexander Mann Solutions Limited,2396674,581.26,Not Applicable
Department for Business Energy and Industrial Strategy,Intellectual Property Office,27/08/2021,Pay Costs,IT Directorate,Alexander Mann Solutions Limited,2396675,"7,199.16",Not Applicable
Department for Business Energy and Industrial Strategy,Intellectual Property Office,27/08/2021,Pay Costs,Patent Directorate,Alexander Mann Solutions Limited,2396676,520.73,Not Applicable
Department for Business Energy and Industrial Strategy,Intellectual Property Office,27/08/2021,Pay Costs,Patent Directorate,Alexander Mann Solutions Limited,2396677,604.2,Not Applicable
Department for Business Energy and Industrial Strategy,Intellectual Property Office,27/08/2021,Pay Costs,Patent Directorate,Alexander Mann Solutions Limited,2396678,588.3,Not Applicable
Department for Business Energy and Industrial Strategy,Intellectual Property Office,31/08/2021,Pay Costs,People Places & Serv Directorate,Alexander Mann Solutions Limited,2396679,548.7,Not Applicable
Department for Business Energy and Industrial Strategy,Intellectual Property Office,27/08/2021,Pay Costs,Trade Mark Directorate,Alexander Mann Solutions Limited,2396680,"1,477.63",Not Applicable
Department for Business Energy and Industrial Strategy,Intellectual Property Office,27/08/2021,Pay Costs,Trade Mark Directorate,Alexander Mann Solutions Limited,2396681,738.82,Not Applicable
Department for Business Energy and Industrial Strategy,Intellectual Property Office,27/08/2021,Pay Costs,Trade Mark Directorate,Alexander Mann Solutions Limited,2396682,738.82,Not Applicable
Department for Business Energy and Industrial Strategy,Intellectual Property Office,27/08/2021,Pay Costs,Trade Mark Directorate,Alexander Mann Solutions Limited,2396683,738.82,Not Applicable
Department for Business Energy and Industrial Strategy,Intellectual Property Office,31/08/2021,Pay Costs,Trade Mark Directorate,Alexander Mann Solutions Limited,2396684,"1,477.63",Not Applicable
Department for Business Energy and Industrial Strategy,Intellectual Property Office,27/08/2021,Pay Costs,Trade Mark Directorate,Alexander Mann Solutions Limited,2396685,738.82,Not Applicable
Department for Business Energy and Industrial Strategy,Intellectual Property Office,27/08/2021,Pay Costs,Trade Mark Directorate,Alexander Mann Solutions Limited,2396686,"1,477.63",Not Applicable
Department for Business Energy and Industrial Strategy,Intellectual Property Office,27/08/2021,Pay Costs,Trade Mark Directorate,Alexander Mann Solutions Limited,2396688,738.82,Not Applicable
Department for Business Energy and Industrial Strategy,Intellectual Property Office,31/08/2021,Pay Costs,Trade Mark Directorate,Alexander Mann Solutions Limited,2396689,"1,477.63",Not Applicable
Department for Business Energy and Industrial Strategy,Intellectual Property Office,31/08/2021,Pay Costs,Trade Mark Directorate,Alexander Mann Solutions Limited,2396690,"1,477.63",Not Applicable
Department for Business Energy and Industrial Strategy,Intellectual Property Office,27/08/2021,Pay Costs,Trade Mark Directorate,Alexander Mann Solutions Limited,2396691,738.82,Not Applicable
Department for Business Energy and Industrial Strategy,Intellectual Property Office,27/08/2021,Pay Costs,Trade Mark Directorate,Alexander Mann Solutions Limited,2396692,738.82,Not Applicable
Department for Business Energy and Industrial Strategy,Intellectual Property Office,27/08/2021,Pay Costs,Trade Mark Directorate,Alexander Mann Solutions Limited,2396693,738.82,Not Applicable
Department for Business Energy and Industrial Strategy,Intellectual Property Office,31/08/2021,Pay Costs,Trade Mark Directorate,Alexander Mann Solutions Limited,2396694,"1,477.63",Not Applicable
Department for Business Energy and Industrial Strategy,Intellectual Property Office,27/08/2021,Pay Costs,Trade Mark Directorate,Alexander Mann Solutions Limited,2396695,738.82,Not Applicable
Department for Business Energy and Industrial Strategy,Intellectual Property Office,31/08/2021,Pay Costs,Trade Mark Directorate,Alexander Mann Solutions Limited,2396696,"1,477.63",Not Applicable
Department for Business Energy and Industrial Strategy,Intellectual Property Office,27/08/2021,Pay Costs,Trade Mark Directorate,Alexander Mann Solutions Limited,2396697,738.82,Not Applicable
Department for Business Energy and Industrial Strategy,Intellectual Property Office,27/08/2021,Pay Costs,Trade Mark Directorate,Alexander Mann Solutions Limited,2396698,738.82,Not Applicable
Department for Business Energy and Industrial Strategy,Intellectual Property Office,27/08/2021,Pay Costs,Trade Mark Directorate,Alexander Mann Solutions Limited,2396699,738.82,Not Applicable
Department for Business Energy and Industrial Strategy,Intellectual Property Office,27/08/2021,Pay Costs,Trade Mark Directorate,Alexander Mann Solutions Limited,2396700,738.82,Not Applicable
Department for Business Energy and Industrial Strategy,Intellectual Property Office,27/08/2021,Pay Costs,Patent Directorate,Alexander Mann Solutions Limited,2396701,580.86,Not Applicable
Department for Business Energy and Industrial Strategy,Intellectual Property Office,31/08/2021,Pay Costs,Patent Directorate,Alexander Mann Solutions Limited,2396702,688.2,Not Applicable
Department for Business Energy and Industrial Strategy,Intellectual Property Office,31/08/2021,Pay Costs,IT Directorate,Alexander Mann Solutions Limited,2396703,"5,292.50",Not Applicable
Department for Business Energy and Industrial Strategy,Intellectual Property Office,27/08/2021,Pay Costs,Patent Directorate,Alexander Mann Solutions Limited,2396704,720.76,Not Applicable
Department for Business Energy and Industrial Strategy,Intellectual Property Office,31/08/2021,Pay Costs,Projects,Alexander Mann Solutions Limited,2396705,"2,142.18",Not Applicable
Department for Business Energy and Industrial Strategy,Intellectual Property Office,25/08/2021,Information Technology,People Places & Serv Directorate,Cyberis Limited,INV01969,"3,150.00",Not Applicable
Department for Business Energy and Industrial Strategy,Intellectual Property Office,04/08/2021,Supporting UK Business,Innovation Directorate,Hindles Ltd,210731,"2,500.00",Not Applicable
Department for Business Energy and Industrial Strategy,Intellectual Property Office,16/08/2021,Staff Costs,People Places & Serv Directorate,Eliesha Training Ltd,22225,"1,782.00",Not Applicable
Department for Business Energy and Industrial Strategy,Intellectual Property Office,26/08/2021,Information Technology,IT Directorate,Empyrean Digital Ltd,EMP-459,"7,800.00",Not Applicable
Department for Business Energy and Industrial Strategy,Intellectual Property Office,12/08/2021,Pay Costs,Projects,Empyrean Digital Ltd,EMP-465,"75,276.02",Not Applicable
Department for Business Energy and Industrial Strategy,Intellectual Property Office,11/08/2021,Information Technology,IT Directorate,Empyrean Digital Ltd,EMP-466,"55,800.00",Not Applicable
Department for Business Energy and Industrial Strategy,Intellectual Property Office,27/08/2021,Accommodation,People Places & Serv Directorate,Government Property Agency,00000001/10123,"24,206.64",Not Applicable
Department for Business Energy and Industrial Strategy,Intellectual Property Office,27/08/2021,Accommodation,People Places & Serv Directorate,Government Property Agency,00000001/11440,"2,359.82",Not Applicable
Department for Business Energy and Industrial Strategy,Intellectual Property Office,27/08/2021,Accommodation,People Places & Serv Directorate,Government Property Agency,00000001/11441,"27,398.42",Not Applicable
Department for Business Energy and Industrial Strategy,Intellectual Property Office,27/08/2021,Accommodation,People Places & Serv Directorate,Government Property Agency,00000001/11442,"-35,786.26",Not Applicable
Department for Business Energy and Industrial Strategy,Intellectual Property Office,27/08/2021,Accommodation,People Places & Serv Directorate,Government Property Agency,00000001/11460,"-24,406.28",Not Applicable
Department for Business Energy and Industrial Strategy,Intellectual Property Office,27/08/2021,Accommodation,People Places & Serv Directorate,Government Property Agency,00000001/11461,"-3,303.00",Not Applicable
Department for Business Energy and Industrial Strategy,Intellectual Property Office,31/08/2021,Accommodation,People Places & Serv Directorate,Government Property Agency,00000001/11906,"40,664.54",Not Applicable
Department for Business Energy and Industrial Strategy,Intellectual Property Office,31/08/2021,Accommodation,People Places & Serv Directorate,Government Property Agency,00000001/11906,"12,725.00",Not Applicable
Department for Business Energy and Industrial Strategy,Intellectual Property Office,31/08/2021,Accommodation,People Places & Serv Directorate,Government Property Agency,00000001/11906,"38,405.57",Not Applicable
Department for Business Energy and Industrial Strategy,Intellectual Property Office,31/08/2021,Accommodation,People Places & Serv Directorate,Government Property Agency,00000001/11906,"8,395.68",Not Applicable
Department for Business Energy and Industrial Strategy,Intellectual Property Office,27/08/2021,Accommodation,People Places & Serv Directorate,Government Property Agency,00000001/11929,"46,330.00",Not Applicable
Department for Business Energy and Industrial Strategy,Intellectual Property Office,10/08/2021,Pay Costs,IT Directorate,Qualserv Consulting Ltd,C/24297,"4,358.22",Not Applicable
Department for Business Energy and Industrial Strategy,Intellectual Property Office,20/08/2021,Information Technology,Projects,Tria Recruitment Limited,TRX-1659CR,"-9,276.00",Not Applicable
Department for Business Energy and Industrial Strategy,Intellectual Property Office,20/08/2021,Information Technology,Projects,Tria Recruitment Limited,TRX-1659INV,"7,178.40",Not Applicable
Department for Business Energy and Industrial Strategy,Intellectual Property Office,13/08/2021,Staff Costs,IT Directorate,Tria Recruitment Limited,TRX-1672,"11,568.00",Not Applicable
Department for Business Energy and Industrial Strategy,Intellectual Property Office,12/08/2021,Information Technology,Projects,Tria Recruitment Limited,TRX-1676,"59,670.00",Not Applicable
Department for Business Energy and Industrial Strategy,Intellectual Property Office,05/08/2021,Information Technology,IT Directorate,Tria Recruitment Limited,TRX-1702,"164,481.00",Not Applicable
Department for Business Energy and Industrial Strategy,Intellectual Property Office,23/08/2021,Information Technology,IT Directorate,Tria Recruitment Limited,TRX-1714,"123,360.76",Not Applicable
Department for Business Energy and Industrial Strategy,Intellectual Property Office,20/08/2021,Information Technology,IT Directorate,Tria Recruitment Limited,TRX-1715,"41,120.24",Not Applicable
Department for Business Energy and Industrial Strategy,Intellectual Property Office,16/08/2021,Supporting UK Business,Innovation Directorate,Bryers LLP,2107328,"2,500.01",Not Applicable
Department for Business Energy and Industrial Strategy,Intellectual Property Office,24/08/2021,Supporting UK Business,Innovation Directorate,Taylor Vinters,4096087,"2,500.00",Not Applicable
Department for Business Energy and Industrial Strategy,Intellectual Property Office,31/08/2021,Supporting UK Business,Innovation Directorate,Brandsmiths LTD,13061.1,"2,500.00",Not Applicable
Department for Business Energy and Industrial Strategy,Intellectual Property Office,11/08/2021,Miscellaneous Expenses General,Projects,iCoTech Group Ltd,INV-0156,"3,431.26",Not Applicable
Department for Business Energy and Industrial Strategy,Intellectual Property Office,19/08/2021,Accommodation,People Places & Serv Directorate,Perfect Circle JV Ltd,PC7450,"6,847.42",Not Applicable
Department for Business Energy and Industrial Strategy,Intellectual Property Office,06/08/2021,Information Technology,IT Directorate,Cloudflare Inc,CI-58843,"6,819.79",Not Applicable
Department for Business Energy and Industrial Strategy,Intellectual Property Office,31/08/2021,Supporting UK Business,Innovation Directorate,Innovare IP Ltd,IIP0205,"2,500.00",Not Applicable
Department for Business Energy and Industrial Strategy,Intellectual Property Office,04/08/2021,Supporting UK Business,Innovation Directorate,Kate Butler IP Limited,072021FSLIPO01,"2,500.00",Not Applicable
Department for Business Energy and Industrial Strategy,Intellectual Property Office,12/08/2021,Supporting UK Business,Innovation Directorate,Kate Butler IP Limited,082021KJTIPO01,"2,500.00",Not Applicable
Department for Business Energy and Industrial Strategy,Intellectual Property Office,06/08/2021,Staff Costs,IT Directorate,Educrowd Pty Ltd,20431,"1,726.28",Not Applicable
Department for Business Energy and Industrial Strategy,Intellectual Property Office,16/08/2021,Other FA at Cost,IT Directorate,Empiric Solutions Ltd,CR0000005290,"-14,580.00",Not Applicable
Department for Business Energy and Industrial Strategy,Intellectual Property Office,26/08/2021,Other FA at Cost,IT Directorate,Empiric Solutions Ltd,CR0000005290A,-810,Not Applicable
Department for Business Energy and Industrial Strategy,Intellectual Property Office,19/08/2021,Other FA at Cost,IT Directorate,Empiric Solutions Ltd,CR0000005293,"-14,580.00",Not Applicable
Department for Business Energy and Industrial Strategy,Intellectual Property Office,16/08/2021,Other FA at Cost,IT Directorate,Empiric Solutions Ltd,SI0000067129,"170,370.00",Not Applicable
Department for Business Energy and Industrial Strategy,Intellectual Property Office,16/08/2021,Other FA at Cost,IT Directorate,Empiric Solutions Ltd,SI0000067130,"14,580.00",Not Applicable
Department for Business Energy and Industrial Strategy,Intellectual Property Office,26/08/2021,Other FA at Cost,IT Directorate,Empiric Solutions Ltd,SI0000067131,"15,390.00",Not Applicable
Department for Business Energy and Industrial Strategy,Intellectual Property Office,16/08/2021,Other FA at Cost,IT Directorate,Empiric Solutions Ltd,SI0000067182,810,Not Applicable
Department for Business Energy and Industrial Strategy,Intellectual Property Office,10/08/2021,Other FA at Cost,IT Directorate,Empiric Solutions Ltd,SI0000067317,"172,470.00",Not Applicable
Department for Business Energy and Industrial Strategy,Intellectual Property Office,16/08/2021,Other FA at Cost,IT Directorate,Empiric Solutions Ltd,SI0000067327,810,Not Applicable
Department for Business Energy and Industrial Strategy,Intellectual Property Office,26/08/2021,Information Technology,IT Directorate,Empiric Solutions Ltd,SI0000067511,"18,000.00",Not Applicable
Department for Business Energy and Industrial Strategy,Intellectual Property Office,19/08/2021,Other FA at Cost,IT Directorate,Empiric Solutions Ltd,SI0000067528,"82,950.00",Not Applicable
Department for Business Energy and Industrial Strategy,Intellectual Property Office,20/08/2021,Information Technology,IT Directorate,Empiric Solutions Ltd,SI0000067530,"16,014.00",Not Applicable
Department for Business Energy and Industrial Strategy,Intellectual Property Office,27/08/2021,Supporting UK Business,Innovation Directorate,Panoramix Limited,150,"2,500.00",Not Applicable
Department for Business Energy and Industrial Strategy,Intellectual Property Office,11/08/2021,Supporting UK Business,Innovation Directorate,Panoramix Limited,159,"2,500.00",Not Applicable
Department for Business Energy and Industrial Strategy,Intellectual Property Office,12/08/2021,Supporting UK Business,Innovation Directorate,Panoramix Limited,167,"2,500.00",Not Applicable
Department for Business Energy and Industrial Strategy,Intellectual Property Office,25/08/2021,Supporting UK Business,Innovation Directorate,Panoramix Limited,168,"2,500.00",Not Applicable
Department for Business Energy and Industrial Strategy,Intellectual Property Office,27/08/2021,Supporting UK Business,Innovation Directorate,Panoramix Limited,176,"2,500.00",Not Applicable
Department for Business Energy and Industrial Strategy,Intellectual Property Office,05/08/2021,Miscellaneous Expenses General,People Places & Serv Directorate,MHR International UK Ltd,SIN132826,"6,391.24",Not Applicable
Department for Business Energy and Industrial Strategy,Intellectual Property Office,23/08/2021,Information Technology,IT Directorate,Melissa Data Ltd,5619023,"9,120.00",Not Applicable
Department for Business Energy and Industrial Strategy,Intellectual Property Office,17/08/2021,Pay Costs,Projects,IRG Advisors T/A Odgers Interim,865947,"39,600.00",Not Applicable
Department for Business Energy and Industrial Strategy,Intellectual Property Office,10/08/2021,Miscellaneous Expenses General,Copyright and Enforcement Directorate,School of International Futures Ltd,INV-0364,"17,820.00",Not Applicable
Department for Business Energy and Industrial Strategy,Intellectual Property Office,05/08/2021,Staff Costs,Copyright and Enforcement Directorate,The University of Buckingham,PF11063,"1,336.00",Not Applicable
Department for Business Energy and Industrial Strategy,Intellectual Property Office,10/08/2021,Staff Costs,Copyright and Enforcement Directorate,The University of Buckingham,QLI115508,"1,336.00",Not Applicable
Department for Business Energy and Industrial Strategy,Intellectual Property Office,26/08/2021,Supporting UK Business,Innovation Directorate,Cleveland Scott York,52954,"2,500.00",Not Applicable
Department for Business Energy and Industrial Strategy,Intellectual Property Office,25/08/2021,Information Technology,IT Directorate,Hewlett Packard International Bank DAC,4.01E+11,"17,859.29",Not Applicable
Department for Business Energy and Industrial Strategy,Intellectual Property Office,25/08/2021,Information Technology,IT Directorate,Hewlett Packard International Bank DAC,4.01E+11,"18,113.07",Not Applicable
Department for Business Energy and Industrial Strategy,Intellectual Property Office,04/08/2021,Staff Costs,IT Directorate,Global Resourcing Limited,23999,"7,680.00",Not Applicable
Department for Business Energy and Industrial Strategy,Intellectual Property Office,13/08/2021,Supporting UK Business,International Policy Directorate,Taylor Vinters Via LLC,210534,"1,120.00",Not Applicable
Department for Business Energy and Industrial Strategy,Intellectual Property Office,13/08/2021,Miscellaneous Expenses General,Innovation Directorate,Peter Tschmuck,C1688,"1,300.00",Not Applicable
Department for Business Energy and Industrial Strategy,Intellectual Property Office,05/08/2021,Staff Costs,Copyright and Enforcement Directorate,College of Policing Ltd,90066979,"4,260.00",Not Applicable
Department for Business Energy and Industrial Strategy,Intellectual Property Office,03/08/2021,Pay Costs,Finance Directorate,Seymour John (Cardiff) Limited,475,"14,250.37",Not Applicable
Department for Business Energy and Industrial Strategy,Intellectual Property Office,05/08/2021,Pay Costs,Finance Directorate,Seymour John (Cardiff) Limited,477,"5,972.34",Not Applicable
Department for Business Energy and Industrial Strategy,Intellectual Property Office,11/08/2021,Pay Costs,Finance Directorate,Seymour John (Cardiff) Limited,479,"5,972.34",Not Applicable
Department for Business Energy and Industrial Strategy,Intellectual Property Office,17/08/2021,Pay Costs,Finance Directorate,Seymour John (Cardiff) Limited,481,"5,972.34",Not Applicable
Department for Business Energy and Industrial Strategy,Intellectual Property Office,25/08/2021,Pay Costs,Finance Directorate,Seymour John (Cardiff) Limited,482,"5,972.34",Not Applicable
Department for Business Energy and Industrial Strategy,Intellectual Property Office,25/08/2021,Miscellaneous Expenses General,People Places & Serv Directorate, EntrepreneurFirstCIC T/A CodeFirstGirls,INV-0635,"97,200.00",Not Applicable
Department for Business Energy and Industrial Strategy,Intellectual Property Office,06/08/2021,Supporting UK Business,Innovation Directorate,Mathys & Squire Consulting Ltd,INV-11210,"2,500.00",Not Applicable
Department for Business Energy and Industrial Strategy,Intellectual Property Office,11/08/2021,Supporting UK Business,Innovation Directorate,Williams Powell,318297,"2,500.00",Not Applicable
Department for Business Energy and Industrial Strategy,Intellectual Property Office,31/08/2021,Other FA at Cost,IT Directorate,Pure Technology Group - T/A Pure Data So,SINV00192929,"1,014.00",Not Applicable
Department for Business Energy and Industrial Strategy,Intellectual Property Office,31/08/2021,Other FA at Cost,IT Directorate,Pure Technology Group - T/A Pure Data So,SINV00192930,685.2,Not Applicable
Department for Business Energy and Industrial Strategy,Intellectual Property Office,31/08/2021,Other FA at Cost,IT Directorate,Pure Technology Group - T/A Pure Data So,SINV00192931,617.95,Not Applicable
Department for Business Energy and Industrial Strategy,Intellectual Property Office,12/08/2021,Supporting UK Business,Innovation Directorate,GWIP Ltd t/a Grey Wolf IP,1090,"2,500.00",Not Applicable
Department for Business Energy and Industrial Strategy,Intellectual Property Office,26/08/2021,Books,Patent Directorate,The Intellectual Property,H57720210828cdmblumgy,-5,Not Applicable
Department for Business Energy and Industrial Strategy,Intellectual Property Office,26/08/2021,Other,People Places & Serv Directorate,Www.Therange.Co.Uk,H57720210828hwhyeuaru,43.12,Not Applicable
Department for Business Energy and Industrial Strategy,Intellectual Property Office,26/08/2021,Office Stationery,People Places & Serv Directorate,Www.Eurekadirect.Co.Uk,H57720210828maolykrxt,9.54,Not Applicable
Department for Business Energy and Industrial Strategy,Intellectual Property Office,26/08/2021,Other,People Places & Serv Directorate,Ikea Ltd Shop Online,H57720210828ntkqjtfrc,200,Not Applicable
Department for Business Energy and Industrial Strategy,Intellectual Property Office,26/08/2021,Overseas Patent Specifications,Patent Directorate,Informa UK Ecom Gb,H57720210828ogjcgundy,41,Not Applicable
Department for Business Energy and Industrial Strategy,Intellectual Property Office,26/08/2021,Books,Patent Directorate,The Intellectual Property,H57720210828pgrxxxbpd,-5,Not Applicable
Department for Business Energy and Industrial Strategy,Intellectual Property Office,26/08/2021,Books,Patent Directorate,The Intellectual Property,H57720210828ptirhopfl,-5,Not Applicable
Department for Business Energy and Industrial Strategy,Intellectual Property Office,26/08/2021,Career Development Services,Innovation Directorate,Paypal,H57720210828qplgkppcm,250,Not Applicable
Department for Business Energy and Industrial Strategy,Intellectual Property Office,26/08/2021,Office Stationery,People Places & Serv Directorate,Epidemic Sound Ab,H57720210828slbrjsthj,39,Not Applicable
Department for Business Energy and Industrial Strategy,Intellectual Property Office,26/08/2021,Books,Patent Directorate,The Intellectual Property,H57720210828tnrjztlkh,-20,Not Applicable
Department for Business Energy and Industrial Strategy,Intellectual Property Office,26/08/2021,Office Stationery,People Places & Serv Directorate,Www.Eurekadirect.Co.Uk,H57720210828wnsnwdumu,111.1,Not Applicable
Department for Business Energy and Industrial Strategy,Intellectual Property Office,26/08/2021,Books,Patent Directorate,The Intellectual Property,H57720210828wtxojfntd,-20,Not Applicable
Department for Business Energy and Industrial Strategy,Intellectual Property Office,26/08/2021,Books,Patent Directorate,The Intellectual Property,H57720210828yirlibmcc,-170,Not Applicable
Department for Business Energy and Industrial Strategy,Intellectual Property Office,25/08/2021,Network and infrastructure H/W,IT Directorate,Www.Flexoptix.Net,H57720210827bbapysoro,188.24,Not Applicable
Department for Business Energy and Industrial Strategy,Intellectual Property Office,25/08/2021,Other,People Places & Serv Directorate,Amznmktplace Amazon.Co.Uk,H57720210827chnkkfskh,31.47,Not Applicable
Department for Business Energy and Industrial Strategy,Intellectual Property Office,25/08/2021,Perpetual Licences,IT Directorate,Digicert Inc,H57720210827guvfylofc,596.37,Not Applicable
Department for Business Energy and Industrial Strategy,Intellectual Property Office,26/08/2021,Overseas Patent Specifications,Patent Directorate,"John Wiley & Sons, Inc",H57720210827krvcjdkwl,44.37,Not Applicable
Department for Business Energy and Industrial Strategy,Intellectual Property Office,25/08/2021,Overseas Patent Specifications,Patent Directorate,Sage Publications Uk,H57720210827pigyerski,38.4,Not Applicable
Department for Business Energy and Industrial Strategy,Intellectual Property Office,25/08/2021,Perpetual Licences,IT Directorate,Digicert Inc,H57720210827ryewodgwq,260.35,Not Applicable
Department for Business Energy and Industrial Strategy,Intellectual Property Office,24/08/2021,Network and infrastructure H/W,IT Directorate,Networking-Store,H57720210826nuyhhkygs,288.9,Not Applicable
Department for Business Energy and Industrial Strategy,Intellectual Property Office,24/08/2021,Other,People Places & Serv Directorate,Wf *wayfair3628331724,H57720210826rsewqgspp,169.96,Not Applicable
Department for Business Energy and Industrial Strategy,Intellectual Property Office,24/08/2021,Overseas Patent Specifications,Patent Directorate,"John Wiley & Sons, Inc",H57720210825iesvbgcel,31.79,Not Applicable
Department for Business Energy and Industrial Strategy,Intellectual Property Office,23/08/2021,Office Stationery,People Places & Serv Directorate,D Brash & Sons Ltd,H57720210825ipziodmsd,648,Not Applicable
Department for Business Energy and Industrial Strategy,Intellectual Property Office,23/08/2021,Perpetual Licences,IT Directorate,Fast Sms,H57720210825lmdotxbbq,48,Not Applicable
Department for Business Energy and Industrial Strategy,Intellectual Property Office,23/08/2021,Office Stationery,People Places & Serv Directorate,Amznmktplace,H57720210825uahunqfsh,21.15,Not Applicable
Department for Business Energy and Industrial Strategy,Intellectual Property Office,23/08/2021,Office Stationery,People Places & Serv Directorate,Sig,H57720210825upmmjbwlp,610.68,Not Applicable
Department for Business Energy and Industrial Strategy,Intellectual Property Office,20/08/2021,Office Stationery,People Places & Serv Directorate,Amznmktplace,H57720210824bfgoyuryd,71.94,Not Applicable
Department for Business Energy and Industrial Strategy,Intellectual Property Office,22/08/2021,Office Stationery,People Places & Serv Directorate,Amazon.Co.Uk,H57720210824kcsevtjag,19.98,Not Applicable
Department for Business Energy and Industrial Strategy,Intellectual Property Office,20/08/2021,Overseas Patent Specifications,Patent Directorate,Spie Org,H57720210824kihotpqln,18.77,Not Applicable
Department for Business Energy and Industrial Strategy,Intellectual Property Office,21/08/2021,Office Stationery,People Places & Serv Directorate,Amznmktplace,H57720210824thpdpjvsd,59.69,Not Applicable
Department for Business Energy and Industrial Strategy,Intellectual Property Office,19/08/2021,Books,Patent Directorate,The Intellectual Property,H57720210821bwbuxonpq,-5,Not Applicable
Department for Business Energy and Industrial Strategy,Intellectual Property Office,19/08/2021,Software Maintenance,IT Directorate,Www.Broadbandbuyer.Co.Uk,H57720210821conuepnep,867.74,Not Applicable
Department for Business Energy and Industrial Strategy,Intellectual Property Office,19/08/2021,Minor Works-Goods,People Places & Serv Directorate,Barriers Direct,H57720210821fjcnbptzb,921.98,Not Applicable
Department for Business Energy and Industrial Strategy,Intellectual Property Office,19/08/2021,Office Stationery,People Places & Serv Directorate,Amazon.Co.Uk,H57720210821ouxnjxrey,22.39,Not Applicable
Department for Business Energy and Industrial Strategy,Intellectual Property Office,19/08/2021,Books,Patent Directorate,The Intellectual Property,H57720210821rhfifxjrq,-60,Not Applicable
Department for Business Energy and Industrial Strategy,Intellectual Property Office,19/08/2021,Books,Patent Directorate,The Intellectual Property,H57720210821xugfyrvaf,-5,Not Applicable
Department for Business Energy and Industrial Strategy,Intellectual Property Office,18/08/2021,Network and infrastructure H/W,IT Directorate,Www.Patchsave.Com,H57720210820kofgphquh,452.47,Not Applicable
Department for Business Energy and Industrial Strategy,Intellectual Property Office,18/08/2021,Software Maintenance,IT Directorate,Go Communications Syst,H57720210820uicjbdbvc,153.6,Not Applicable
Department for Business Energy and Industrial Strategy,Intellectual Property Office,17/08/2021,Office Stationery,People Places & Serv Directorate,Amznmktplace,H57720210819dsfgsyzdd,22.97,Not Applicable
Department for Business Energy and Industrial Strategy,Intellectual Property Office,17/08/2021,Office Stationery,People Places & Serv Directorate,Www.Insighthealthscreenin,H57720210819kgyyywico,469,Not Applicable
Department for Business Energy and Industrial Strategy,Intellectual Property Office,17/08/2021,Overseas Patent Specifications,Patent Directorate,Knowledgeworks Global-Au,H57720210819kudujcrfa,42.45,Not Applicable
Department for Business Energy and Industrial Strategy,Intellectual Property Office,17/08/2021,Seminars and Confereces,People Places & Serv Directorate,Fcdo Services,H57720210819nylyvrmxj,75,Not Applicable
Department for Business Energy and Industrial Strategy,Intellectual Property Office,18/08/2021,Overseas Patent Specifications,Patent Directorate,"John Wiley & Sons, Inc",H57720210819uleloyiyq,36.49,Not Applicable
Department for Business Energy and Industrial Strategy,Intellectual Property Office,16/08/2021,Entertainment,IT Directorate,Domino S Pizza,H57720210818hgijvinrw,50.92,Not Applicable
Department for Business Energy and Industrial Strategy,Intellectual Property Office,16/08/2021,Office Stationery,People Places & Serv Directorate,Screwfix Direct,H57720210818hwbtjuvhs,104.03,Not Applicable
Department for Business Energy and Industrial Strategy,Intellectual Property Office,16/08/2021,Books Newspaper Pub(central),Innovation Directorate,Www.Nielsenisbnstore.C,H57720210818qlpoebdtp,369,Not Applicable
Department for Business Energy and Industrial Strategy,Intellectual Property Office,16/08/2021,Minor Works-Goods,People Places & Serv Directorate,Screwfix Direct,H57720210818sldneopiv,29.99,Not Applicable
Department for Business Energy and Industrial Strategy,Intellectual Property Office,14/08/2021,Books,Patent Directorate,The Intellectual Property,H57720210817abtjvlgmh,20,Not Applicable
Department for Business Energy and Industrial Strategy,Intellectual Property Office,14/08/2021,Network and infrastructure H/W,Projects,The Intellectual Property,H57720210817afkygdvkd,170,Not Applicable
Department for Business Energy and Industrial Strategy,Intellectual Property Office,14/08/2021,Books,Patent Directorate,The Intellectual Property,H57720210817hfjkvlxgn,5,Not Applicable
Department for Business Energy and Industrial Strategy,Intellectual Property Office,14/08/2021,Network and infrastructure H/W,Trade Mark Directorate,The Intellectual Property,H57720210817hjyndrsfv,50,Not Applicable
Department for Business Energy and Industrial Strategy,Intellectual Property Office,14/08/2021,Books,Patent Directorate,The Intellectual Property,H57720210817hockjbptr,5,Not Applicable
Department for Business Energy and Industrial Strategy,Intellectual Property Office,14/08/2021,Network and infrastructure H/W,Trade Mark Directorate,The Intellectual Property,H57720210817jcmaxheqd,50,Not Applicable
Department for Business Energy and Industrial Strategy,Intellectual Property Office,14/08/2021,Books,Patent Directorate,The Intellectual Property,H57720210817kmkckjjvu,5,Not Applicable
Department for Business Energy and Industrial Strategy,Intellectual Property Office,13/08/2021,Office Stationery,People Places & Serv Directorate,Amznmktplace Amazon.Co.Uk,H57720210817lszjiibgp,293.7,Not Applicable
Department for Business Energy and Industrial Strategy,Intellectual Property Office,14/08/2021,Books,Patent Directorate,The Intellectual Property,H57720210817mvqdkrpfv,20,Not Applicable
Department for Business Energy and Industrial Strategy,Intellectual Property Office,14/08/2021,Network and infrastructure H/W,Projects,The Intellectual Property,H57720210817nhecgahez,170,Not Applicable
Department for Business Energy and Industrial Strategy,Intellectual Property Office,14/08/2021,Books,Patent Directorate,The Intellectual Property,H57720210817pkiodafyq,30,Not Applicable
Department for Business Energy and Industrial Strategy,Intellectual Property Office,13/08/2021,Career Development Services,Finance Directorate,Www.Cips.Org,H57720210817qrysycmid,45.5,Not Applicable
Department for Business Energy and Industrial Strategy,Intellectual Property Office,14/08/2021,Overseas Patent Specifications,Patent Directorate,"John Wiley & Sons, Inc",H57720210817srujguinz,31.35,Not Applicable
